{"text_format":"1","workbook":"xlsx","n_sheets":8,"sheets":["Handleiding","Algemene gegevens","Project HA","Project WA","Project kolk","huisaansluitingen","kolkaansluitingen","keuzelijsten"],"not_rendered":{"charts":0,"images":17,"macros":1,"external_links":0,"defined_names":6,"comments":2,"pivot_tables":0},"unopened":[],"bounds":{"document_bytes":16777216,"sheet_cells":100000,"rows_first":2000,"rows_last":500,"rows_between":2000,"halvings":0,"cell_chars":16384,"cell_head_chars":4096},"cells_cut":0,"cells_raw":0,"read":"whole","date_system":"1900"}

{"sheet":"Handleiding","index":0,"n_rows":229,"n_cols":10,"rows_kept":229,"cut":false,"hidden":false,"merged":[]}
["Doelstelling;"]
["1 uniforme huisaansluitingsfiche voor alle rioolbeheerders in Vlaanderen, op heden zijn volgende instanties akkoord gegaan met deze opmaak "]
[null,"Aquafin"]
[null,"Farys"]
[null,"Fluvius "]
[null,"Pidpa"]
[null,"Riopact"]
[]
["Principe:"]
["Bij de start van een nieuw weg- en rioleringsproject zal de rioolbeheerder in de gemeente/stad zorgen voor een deels ingevulde fiche zoals hier voorgesteld wordt."]
["De bouwheer zal de rioolbeheerder hiervoor tijdig contacteren."]
[]
["Alle blauwe vakken dienen door de rioolbeheerder ingevuld te worden vooraleer deze fiche wordt overgemaakt aan de aannemer."]
[]
["Alle gele vakken dienen stapsgewijs door de aannemer verder ingevuld te worden."]
[]
["Alle oranje vakken worden automatisch ingevuld al dan niet na het runnen van de macro. Hier moet dus niets manueel ingevuld worden."]
[]
["1. Tabblad \"Algemene gegevens\""]
[]
["Hierin moeten alle algemene gegevens van het project vermeld worden, dit vooraleer de nodige macro's gerund worden."]
[]
["Actie door :","rioolbeheerder en ",null,"aannemer"]
[]
[]
["2. Tabblad \"Project HA/WA /Klok\""]
[]
["Dit zijn overzichtstabbellen van de uit te voeren of geplande huisaansluitingen en klokaansluitingen."]
[]
["Na het draaien van de macro's kan men switchen tussen de verschillende tabbladen, uitleg zie verder."]
[]
[]
["2.1 Tabblad \"Project HA\""]
[]
["In deze overzichtslijst worden alle bestaande woningen/percelen opgenomen."]
[]
["Bij de start van het project zal de",null,null,"rioolbeheerder",null,"voor elk perceel  waarvoor een huisnummer gekend is/ bewoond is, een equipmentnummer aanvullen in de lijst."]
["Elk adres wordt twee maal opgenomen in de lijst, eertse maal voor RWA-huisaansluiting en tweede maal voor de DWA-huisaansluiting."]
[]
["Indien een woning een tweede DWA- of RWA-huisaansluiting heeft, dient ",null,null,null,null,null,null,"de aannemer",null,"zelf de bestaande lijnen voor DWA- of RWA-huisaansluiting te kopiëren in dezelfde lijst."]
["LET OP: bij het kopiëren van een nieuwe lijn moet er steeds bij het equipmentnr. een letter b genoteerd worden, en bij de 3de aansluiting c, … "]
["Er mogen geen symbolen gebruilt worden, anders werkt de marco niet."]
[]
["De macro voor de uitrol van de huisaansluitingsfiches pas runnen als de lijst volledig is!"]
["De gegevens van de diameter en materiaal moet ook vooraf ingevuld worden, door ",null,null,null,null,null,null,null,"de aannemer"]
[]
["2.2 Tabblad \"Project WA\""]
[]
["In deze overzichtslijst worden alle (wacht)aansluitingen voor wachtpercelen voorzien, zijnde onbebouwe percelen, weilanden, ..."]
[]
["Ook hier worden er per wachtaansluting twee lijnen voorzien, 1x DWA-aansluiting en 1x RWA aansluiting."]
[]
["De aannemer ","dient hier zelf de lijst vooraf volledig in te vullen vooraleer deze macro gerund wordt;"]
["Straatnaam in te vullen (en mogelijks huisnummer), alsook gebruikte diameter en materiaal."]
[]
["Deze wachtaansluitingen dienen gewoon numeriek opgesomd te worden en de aanduiding hiervan moet mee opgenomen worden op de asbuilt grondplannen."]
[]
["Verkavelingen worden ook onder deze overzichtslijst ingevuld, de aansluitingen worden dan voorzien volgens gekend lotnummer (en niet volgens een eigen volgnummer)."]
[]
[]
["2.3 Tabblad \"Project kolk\""]
[]
["In deze overzichtslijst worden alle kolkaansluitingen bijgehouden."]
[]
["Hier wordt er per kolkaansluting één lijn voorzien."]
[]
["De aannemer ","dient hier zelf de lijst vooraf volledig in te vullen vooraleer deze macro gerund wordt;"]
["Straatnaam in te vullen (en eventueel huisnummer), alsook gebruikte diameter en materiaal."]
[]
["Deze kolkaansluitingen dienen gewoon numeriek opgesomd te worden en de aanduiding hiervan moet mee opgenomen worden op de asbuilt grondplannen."]
[]
[]
["3. Tabblad \"huisaansluiting/klokaansluiting\""]
[]
["Als men de marco runt, zullen deze tabbladen opgemaakt worden per perceel of per kolk aansluiting."]
[]
["De aannemer ","dient dan de aangemaakte tabbladen in te vullen in de gele velden, de gegevens van de hoeveelheden worden dan gekopieerd naar de overzichtstabel."]
["De oranje velden worden automatisch ingevuld bij het runnen van de macro ifv de ingevulde gegevens op voorgaande tabbladen."]
[]
["Verduidelijking enkele velden:"]
["Diepte aanboring op hoofdriool tov MV (op best. riolering):",null,null,null,null,null,"bij aansluiting op een nieuwe riolering, dient hier geen diepte aangevuld te worden"]
[null,null,null,null,null,null,"bij aansluiting op een bestaande riolering, dient hier wel een diepte aangevuld te worden"]
["5. zelfde als foto 2,  met aangevulde sleuf (op best. riolering):",null,null,null,null,null,"bij aansluiting op een nieuwe riolering, dient hier geen foto aangevuld te worden"]
[null,null,null,null,null,null,"bij aansluiting op een bestaande riolering, dient hier wel een foto aangevuld te worden"]
[]
["4. Tabblad \"keuzelijst\""]
[]
["Hierin mag men geen aanpassingen doen."]
[]
[]
[]
["Het aanmaken van de fiches"]
[]
["Er wordt voorgesteld aan de aannemer om de fiches in fase aan te leveren."]
["Men behoudt het standaard document welk de aannemer bij aanvang van de werken ontvangen, en hij gaat zelf per uitvoeringsfase of per vorderingsstaat, … een aangepaste, ingevulde excel overmaken aan de bouwheer."]
[]
["1. Voorbereiding - opmaak van de overzichtslijsten"]
[]
["Men moet eerst de overzichtstabel per fase vervolledigen, alle adressen waarvoor in deze fase een fiches wordt opgemaakt moet in de lijst opgenomen worden."]
["De overige adressen mogen verwijdert worden."]
[]
["Indien een woning een tweede DWA- of RWA-huisaansluiting heeft, dient ",null,null,null,null,null,null,"de aannemer",null,"zelf de bestaande lijnen voor DWA- of RWA-huisaansluiting te kopiëren in dezelfde lijst."]
["LET OP: bij het kopiëren van een nieuwe lijn moet er steeds bij het equipmentnr. een letter b genoteerd worden voor een tweede aansluiting ( zelfde type) , en bij de 3de aansluiting c, … "]
["Er mogen geen symbolen gebruilt worden, anders werkt de marco niet"]
[]
["Dit is van toepassing voor project HA, vb. twee DWA aansluiting voor eenzelfde perceel:"]
[]
[]
[]
[]
[]
[]
["Men dient de gegevens van de diameter en het gebruikte materiaal voor de aansluiting reeds op te nemen in de tabel."]
[]
["Bij de overzichtslijst van project WA, dient men de lijnen te kopiëren indien men meerdere lijnen nodig heeft. Nieuwe lijnen bijvoegen kan niet omdat dan de formules niet gekopiëerd worden."]
[]
["Ook bij de overzichtslijst project kolk, dient met extra lijnen te kopiëren en niet bij te voegen owv zelfde reden."]
[]
["Bij deze twee overzichtslijsten dienen de gegevens van de diameter en het gebruikte materiaal voor de aansluiting aangevuld te worden in de tabel."]
[]
["NOTA: indien een aansluiting gemengd water opvangt en niet alleen afvalwater, dient met het aard van het water te vervangen van DWA naar GEM, dit wordt dan ook zo opgenomen in de totaal hoeveelheden."]
[]
["2. Aanmaak fiches"]
[]
["Als de overzichtslijsten volledig zijn aagevuld, kan de marco gerund worden, dit per tabblad."]
[]
["Per tabblad(HA/WA/kolk) is er bovenaan 1 knop aangemaakt voor het creëren van de fiches, hierop kan men nu drukken voor de fiches aan te maken."]
[]
["De macro begint te runnen en op het einde hiervan komt deze pop-up te voorschijn."]
["Kies hier \" verwijderen\":"]
[]
[]
[]
[]
[]
[]
[]
[]
["Alle fiches van de geselecteerde overzichtslijst zijn aangemaakt."]
[]
["NOTA: de macro kan maar 1x gedraaid worden per overzichtslijst ( per bestand). (Er worden onderliggend formulles en gegevens bijgemaakt per tabblad.)"]
[]
["3. Switchen tussen  overzichtslijst en fiche"]
[]
["Na het runnen van de macro is er een hyperlink gecreërd tussen de overzichtslijst en fiche zelf, door hierop te klikken kan je snel tussen de verschillende tabbladeren swichten."]
["Hyperlink in de overzichtslijst, onder \" equipmentnr\":"]
[]
[]
[]
[]
[]
[]
[]
[]
[]
["Hyperlink in de fiche, onder \"equipmentnr\":"]
[]
[]
[]
[]
[]
[]
[]
[]
[]
["4. Invullen van de fiche"]
[]
["Alle gegevens per huisaansluiting moeten ingevuld worden op de fiche zelf in de gele velden."]
["De gegevens op de fiche zelf in de oranje velden zijn gekopieerd vanuit de overzichtslijst."]
[]
["Alle hoeveelheden van de gele velden in de fiche, worden automatisch overgenomen in de overzichtslijst. Hieronder wordt de totale hoeveelheid weer gegeven per RWA, DWA en GEM."]
[]
["Sommige velden zijn voorzien van voorgeprogrammeerde 'keuzevelden'."]
[]
["Situatieschets: ","afhangkelijk van de situatie van het huisaansluitingsputje moet er een afstand meegedeeld worden vanuit een bepaalde grens, zie schets."]
["Men dient de juiste letter aan te duiden zodat duidelijk is welke afstand wordt meegedeeld."]
["Velvolgens moet de afstand hierachter genoteerd worden."]
[]
["Foto's:"]
["Er dienen foto's meegeleverd te worden van de DWA of GEM aansluiting en van de RWA aansluiting."]
["Tijdens 5 verschillende fases dienen deze foto's bijgevoegd te worden, dit volgens beschrijving van het standaardbestek 250 versie 4.1"]
["Ook moet er een overzichtsfoto bijgevoegd worden zodat de situering van de aansluiting duidelijk is tov de omgeving."]
["Er wordt verwezen naar het SB250 versie 4,1 voor meer uitleg hierover."]
[]
["Foto's worden niet ingevoegd in het bestand, hierdoor wordt de excel te veel belanst waardoor het bestand vertraagt/te zwaar wordt."]
["Foto's dienen via (vb.) 'knipprogramma' van windows 10 ingevoegd te worden:"]
[]
[]
[]
[]
[]
[]
[]
[]
[]
[]
[]
[]
[]
[]
["Men kan de foto's openen en een 'knipsel' nemen van deze foto door op \"nieuw\"te klikken."]
["Na het selecteren hiervan druk je op de knop kopiëren:"]
[]
[]
[]
[]
[]
[]
[]
[]
["Vervolgens ga je op de juiste locatie staan in de fiche waar de foto moet komen en gaat u plakken door vb. de sneltoetsen \" Ctrl\" + \"v\" samen ingedrukt te houden."]
["Men kan dan vervolgens nog de grootte van de afbeelding aanpassen."]
[]
["Andere mogelijk heden zijn er ook om foto's in te voegen, maar het is van belang dat deze met een zeer beperkte grote ( enkele kb) worden ingevoegd."]
[]
["5. Van de fiches PDF bestanden maken"]
[]
["Als alle fiches klaar zijn per fase, dienen deze omgezet te worden naar 1 PDF bestand per adres/fiche."]
["Dit kan door de macro, \"print naar pdf\" aan te klikken, deze knop is bovenaan dit tabblad voorzien."]
[]
["Er wordt dan van alle nieuwe tabbladen een pdf bestand gemaakt met de juiste bestandsnaam. "]
[]
["Wanneer je de macro oproept wordt de locatie gevraagd waar je de pdf-bestanden wil plaatsen."]
[]
["6. Coördinaten van de huisaansluitingsputjes"]
[]
["Op het einde van het project dient de overzichtslijst aangevuld te worden met de x,y,z-coördinaten van het huisaansluitingsputje."]
["Indien en eenuisanasluitingsputje aanwezig is, zijn dit de coördinaten van het midden van het deksle van dit putje,"]
["indien er geen putje aanwezig is, maar vb. een rechstreekse aansluiting in een open gracht, dienen de coördianten van deze aansluiting in de gracht genoteerd te worden."]

{"sheet":"Algemene gegevens","index":1,"n_rows":22,"n_cols":8,"rows_kept":22,"cut":false,"hidden":false,"merged":[[19,7,21,7],[4,7,6,7]]}
["Project gegevens"]
[]
["Rioolbeheerder"]
["Naam rioolbeheeder:","AAAAA"]
["Projectnummer:","xx,xxx",null,null,null,null,null,"in te vullen door rioolbeheerder,  vooralleer deze wordt overgemaakt aan aannemer"]
["Projectnaam: ","BBBBBBB"]
["Gemeente:","leuven",null,null,"gemeentecode fiche:",{"$f":"VLOOKUP(B7,Tabel2[#All],6,FALSE)","v":"LEU"}]
[]
["Bouwheer"]
["Naam bouwheer:"]
["Projectnummer:"]
["Projectnaam: "]
[]
["Medeopdrachtgever"]
["Naam medeopdrachtgever:"]
["Projectnummer:"]
["Projectnaam: "]
[]
["Aannemer:"]
["Projectnummer:",null,null,null,null,null,null,"in te vullen door aannemer, voor het runnen van macro's (zie handleiding)"]
["Naam aannemer: "]
["Werfleider:"]

{"sheet":"Project HA","index":2,"n_rows":41,"n_cols":23,"rows_kept":41,"cut":false,"hidden":false,"merged":[[26,21,27,21],[26,22,27,22],[28,21,29,21],[28,22,29,22],[22,21,23,21],[22,22,23,22],[24,21,25,21],[24,22,25,22],[4,22,5,22],[16,22,17,22],[2,7,2,9],[4,21,5,21],[16,21,17,21],[2,10,2,20],[18,21,19,21],[18,22,19,22],[20,21,21,21],[20,22,21,22],[6,21,7,21],[6,22,7,22],[8,21,9,21],[8,22,9,22],[10,21,11,21],[10,22,11,22],[12,21,13,21],[12,22,13,22],[14,21,15,21],[14,22,15,22]]}
["Aansluitingen bestaande woningen",null,null,null,{"$f":"COUNTA(C:C)-1","v":26}]
[null,null,null,null,null,null,null,null,null,null,{"$f":"IFERROR(IF($D5=\"RWA\",INDIRECT($C5&\"!$I$20\"),IF($D5=\"DWA\",INDIRECT($C5&\"!$G$20\"),IF($D5=\"GEM\",INDIRECT($C5&\"!$G$20\"),\"\"))),\" \")","v":" "}]
[null,null,null,null,null,null,null,"lambert coördinaten - deksel HA-putje",null,null,"HOEVEELHEDEN aansluiting"]
["Straat","Huisnr","Equipmentnummer riolering","aard water (RWA/DWA/GEM)","soort\n(HA, WA)","diameter\n(mm)","materiaal\n(grès, PVC,PP)","X coördinaat","Y coördinaat","Z coördinaat","Mof\n(st)","Buis\n(m)","Bocht\n(st)","Y/T-stuk\n(st)","Krimpmof\n(st)","Koppelstuk\n(st)","Reductie\n(st)","Stop\n(st)","Andere","diameter HA-putje of T-stuk\n( mm)","Terugslag-klep in HA-putje\n(ja/nee)","naamgeving fiche"]
["straat",1,123456789,"RWA","HA",null,null,null,null,null,{"$f":"IFERROR(IF($D5=\"RWA\",INDIRECT($C5&\"!$I$20\"),IF($D5=\"DWA\",INDIRECT($C5&\"!$G$20\"),IF($D5=\"GEM\",INDIRECT($C5&\"!$G$20\"),\"\"))),\" \")","v":" "},{"$f":"IFERROR(IF($D5=\"RWA\",INDIRECT($C5&\"!$I$21\"),IF($D5=\"DWA\",INDIRECT($C5&\"!$G$21\"),IF($D5=\"GEM\",INDIRECT($C5&\"!$G$21\"),\"\"))),\" \")","v":" "},{"$f":"IFERROR(IF($D5=\"RWA\",INDIRECT($C5&\"!$I$22\"),IF($D5=\"DWA\",INDIRECT($C5&\"!$G$22\"),IF($D5=\"GEM\",INDIRECT($C5&\"!$G$22\"),\"\"))),\" \")","v":" "},{"$f":"IFERROR(IF($D5=\"RWA\",INDIRECT($C5&\"!$I$23\"),IF($D5=\"DWA\",INDIRECT($C5&\"!$G$23\"),IF($D5=\"GEM\",INDIRECT($C5&\"!$G$23\"),\"\"))),\" \")","v":" "},{"$f":"IFERROR(IF($D5=\"RWA\",INDIRECT($C5&\"!$I$24\"),IF($D5=\"DWA\",INDIRECT($C5&\"!$G$24\"),IF($D5=\"GEM\",INDIRECT($C5&\"!$G$24\"),\"\"))),\" \")","v":" "},{"$f":"IFERROR(IF($D5=\"RWA\",INDIRECT($C5&\"!$I$25\"),IF($D5=\"DWA\",INDIRECT($C5&\"!$G$25\"),IF($D5=\"GEM\",INDIRECT($C5&\"!$G$25\"),\"\"))),\" \")","v":" "},{"$f":"IFERROR(IF($D5=\"RWA\",INDIRECT($C5&\"!$I$26\"),IF($D5=\"DWA\",INDIRECT($C5&\"!$G$26\"),IF($D5=\"GEM\",INDIRECT($C5&\"!$G$26\"),\"\"))),\" \")","v":" "},{"$f":"IFERROR(IF($D5=\"RWA\",INDIRECT($C5&\"!$I$27\"),IF($D5=\"DWA\",INDIRECT($C5&\"!$G$27\"),IF($D5=\"GEM\",INDIRECT($C5&\"!$G$27\"),\"\"))),\" \")","v":" "},{"$f":"IFERROR(IF($D5=\"RWA\",INDIRECT($C5&\"!$I$28\"),IF($D5=\"DWA\",INDIRECT($C5&\"!$G$28\"),IF($D5=\"GEM\",INDIRECT($C5&\"!$G$28\"),\"\"))),\" \")","v":" "},{"$f":"IFERROR(IF($D5=\"RWA\",INDIRECT($C5&\"!$I$29\"),IF($D5=\"DWA\",INDIRECT($C5&\"!$G$29\"),IF($D5=\"GEM\",INDIRECT($C5&\"!$G$29\"),\"\"))),\" \")","v":" "},{"$f":"IFERROR(IF($D5=\"RWA\",INDIRECT($C5&\"!$I$30\"),IF($D5=\"DWA\",INDIRECT($C5&\"!$G$30\"),IF($D5=\"GEM\",INDIRECT($C5&\"!$G$30\"),\"\"))),\" \")","v":" "},{"$f":"\"GEM=\"&'Algemene gegevens'!$F$7&\" projectnr=\"&'Algemene gegevens'!$B$5&\" adres=\"&'Project HA'!A5&\" \"&'Project HA'!B5&\" eq=\"&'Project HA'!C5&\" AB-HA-fiche\"","v":"GEM=LEU projectnr=xx,xxx adres=straat 1 eq=123456789 AB-HA-fiche"},"1 document voor RWA en DWA aansluiting"]
["straat",1,123456789,"DWA","HA",null,null,null,null,null,{"$f":"IFERROR(IF($D6=\"RWA\",INDIRECT($C6&\"!$I$20\"),IF($D6=\"DWA\",INDIRECT($C6&\"!$G$20\"),IF($D6=\"GEM\",INDIRECT($C6&\"!$G$20\"),\"\"))),\" \")","v":" "},{"$f":"IFERROR(IF($D6=\"RWA\",INDIRECT($C6&\"!$I$21\"),IF($D6=\"DWA\",INDIRECT($C6&\"!$G$21\"),IF($D6=\"GEM\",INDIRECT($C6&\"!$G$21\"),\"\"))),\" \")","v":" "},{"$f":"IFERROR(IF($D6=\"RWA\",INDIRECT($C6&\"!$I$22\"),IF($D6=\"DWA\",INDIRECT($C6&\"!$G$22\"),IF($D6=\"GEM\",INDIRECT($C6&\"!$G$22\"),\"\"))),\" \")","v":" "},{"$f":"IFERROR(IF($D6=\"RWA\",INDIRECT($C6&\"!$I$23\"),IF($D6=\"DWA\",INDIRECT($C6&\"!$G$23\"),IF($D6=\"GEM\",INDIRECT($C6&\"!$G$23\"),\"\"))),\" \")","v":" "},{"$f":"IFERROR(IF($D6=\"RWA\",INDIRECT($C6&\"!$I$24\"),IF($D6=\"DWA\",INDIRECT($C6&\"!$G$24\"),IF($D6=\"GEM\",INDIRECT($C6&\"!$G$24\"),\"\"))),\" \")","v":" "},{"$f":"IFERROR(IF($D6=\"RWA\",INDIRECT($C6&\"!$I$25\"),IF($D6=\"DWA\",INDIRECT($C6&\"!$G$25\"),IF($D6=\"GEM\",INDIRECT($C6&\"!$G$25\"),\"\"))),\" \")","v":" "},{"$f":"IFERROR(IF($D6=\"RWA\",INDIRECT($C6&\"!$I$26\"),IF($D6=\"DWA\",INDIRECT($C6&\"!$G$26\"),IF($D6=\"GEM\",INDIRECT($C6&\"!$G$26\"),\"\"))),\" \")","v":" "},{"$f":"IFERROR(IF($D6=\"RWA\",INDIRECT($C6&\"!$I$27\"),IF($D6=\"DWA\",INDIRECT($C6&\"!$G$27\"),IF($D6=\"GEM\",INDIRECT($C6&\"!$G$27\"),\"\"))),\" \")","v":" "},{"$f":"IFERROR(IF($D6=\"RWA\",INDIRECT($C6&\"!$I$28\"),IF($D6=\"DWA\",INDIRECT($C6&\"!$G$28\"),IF($D6=\"GEM\",INDIRECT($C6&\"!$G$28\"),\"\"))),\" \")","v":" "},{"$f":"IFERROR(IF($D6=\"RWA\",INDIRECT($C6&\"!$I$29\"),IF($D6=\"DWA\",INDIRECT($C6&\"!$G$29\"),IF($D6=\"GEM\",INDIRECT($C6&\"!$G$29\"),\"\"))),\" \")","v":" "},{"$f":"IFERROR(IF($D6=\"RWA\",INDIRECT($C6&\"!$I$30\"),IF($D6=\"DWA\",INDIRECT($C6&\"!$G$30\"),IF($D6=\"GEM\",INDIRECT($C6&\"!$G$30\"),\"\"))),\" \")","v":" "}]
["straat",2,234567888,"RWA","HA",null,null,null,null,null," "," "," "," "," "," "," "," "," "," "," ",{"$f":"\"GEM=\"&'Algemene gegevens'!$F$7&\" projectnr=\"&'Algemene gegevens'!$B$5&\" adres=\"&'Project HA'!A7&\" \"&'Project HA'!B7&\" eq=\"&'Project HA'!C7&\" AB-HA-fiche\"","v":"GEM=LEU projectnr=xx,xxx adres=straat 2 eq=234567888 AB-HA-fiche"},"1 document voor RWA en DWA aansluiting"]
["straat",2,234567888,"DWA","HA",null,null,null,null,null," "," "," "," "," "," "," "," "," "," "," "]
["straat",3,345678901,"RWA","HA",null,null,null,null,null," "," "," "," "," "," "," "," "," "," "," ",{"$f":"\"GEM=\"&'Algemene gegevens'!$F$7&\" projectnr=\"&'Algemene gegevens'!$B$5&\" adres=\"&'Project HA'!A9&\" \"&'Project HA'!B9&\" eq=\"&'Project HA'!C9&\" AB-HA-fiche\"","v":"GEM=LEU projectnr=xx,xxx adres=straat 3 eq=345678901 AB-HA-fiche"},"1 document voor RWA en DWA aansluiting"]
["straat",3,345678901,"DWA","HA",null,null,null,null,null," "," "," "," "," "," "," "," "," "," "," "]
["straat",4,345678902,"RWA","HA",null,null,null,null,null," "," "," "," "," "," "," "," "," "," "," ",{"$f":"\"GEM=\"&'Algemene gegevens'!$F$7&\" projectnr=\"&'Algemene gegevens'!$B$5&\" adres=\"&'Project HA'!A11&\" \"&'Project HA'!B11&\" eq=\"&'Project HA'!C11&\" AB-HA-fiche\"","v":"GEM=LEU projectnr=xx,xxx adres=straat 4 eq=345678902 AB-HA-fiche"},"1 document voor RWA en DWA aansluiting"]
["straat",4,345678902,"DWA","HA",null,null,null,null,null," "," "," "," "," "," "," "," "," "," "," "]
["straat",5,345678903,"RWA","HA",null,null,null,null,null," "," "," "," "," "," "," "," "," "," "," ",{"$f":"\"GEM=\"&'Algemene gegevens'!$F$7&\" projectnr=\"&'Algemene gegevens'!$B$5&\" adres=\"&'Project HA'!A13&\" \"&'Project HA'!B13&\" eq=\"&'Project HA'!C13&\" AB-HA-fiche\"","v":"GEM=LEU projectnr=xx,xxx adres=straat 5 eq=345678903 AB-HA-fiche"},"1 document voor RWA en DWA aansluiting"]
["straat",5,345678903,"DWA","HA",null,null,null,null,null," "," "," "," "," "," "," "," "," "," "," "]
["straat",6,345678904,"RWA","HA",null,null,null,null,null," "," "," "," "," "," "," "," "," "," "," ",{"$f":"\"GEM=\"&'Algemene gegevens'!$F$7&\" projectnr=\"&'Algemene gegevens'!$B$5&\" adres=\"&'Project HA'!A15&\" \"&'Project HA'!B15&\" eq=\"&'Project HA'!C15&\" AB-HA-fiche\"","v":"GEM=LEU projectnr=xx,xxx adres=straat 6 eq=345678904 AB-HA-fiche"},"1 document voor RWA en DWA aansluiting"]
["straat",6,345678904,"DWA","HA",null,null,null,null,null," "," "," "," "," "," "," "," "," "," "," "]
["straat",7,345678905,"RWA","HA",null,null,null,null,null," "," "," "," "," "," "," "," "," "," "," ",{"$f":"\"GEM=\"&'Algemene gegevens'!$F$7&\" projectnr=\"&'Algemene gegevens'!$B$5&\" adres=\"&'Project HA'!A17&\" \"&'Project HA'!B17&\" eq=\"&'Project HA'!C17&\" AB-HA-fiche\"","v":"GEM=LEU projectnr=xx,xxx adres=straat 7 eq=345678905 AB-HA-fiche"},"1 document voor RWA en DWA aansluiting"]
["straat",7,345678905,"DWA","HA",null,null,null,null,null," "," "," "," "," "," "," "," "," "," "," "]
["straat",8,345678906,"RWA","HA",null,null,null,null,null," "," "," "," "," "," "," "," "," "," "," ",{"$f":"\"GEM=\"&'Algemene gegevens'!$F$7&\" projectnr=\"&'Algemene gegevens'!$B$5&\" adres=\"&'Project HA'!A19&\" \"&'Project HA'!B19&\" eq=\"&'Project HA'!C19&\" AB-HA-fiche\"","v":"GEM=LEU projectnr=xx,xxx adres=straat 8 eq=345678906 AB-HA-fiche"},"1 document voor RWA en DWA aansluiting"]
["straat",8,345678906,"DWA","HA",null,null,null,null,null,{"$f":"IFERROR(IF($D20=\"RWA\",INDIRECT($C20&\"!$I$20\"),IF($D20=\"DWA\",INDIRECT($C20&\"!$G$20\"),IF($D20=\"GEM\",INDIRECT($C20&\"!$G$20\"),\"\"))),\" \")","v":" "}," "," "," "," "," "," "," "," "," "," "]
["straat",9,345678911,"RWA","HA",null,null,null,null,null," "," "," "," "," "," "," "," "," "," "," ",{"$f":"\"GEM=\"&'Algemene gegevens'!$F$7&\" projectnr=\"&'Algemene gegevens'!$B$5&\" adres=\"&'Project HA'!A21&\" \"&'Project HA'!B21&\" eq=\"&'Project HA'!C21&\" AB-HA-fiche\"","v":"GEM=LEU projectnr=xx,xxx adres=straat 9 eq=345678911 AB-HA-fiche"},"1 document voor RWA en DWA aansluiting"]
["straat",9,345678911,"DWA","HA",null,null,null,null,null," "," "," "," "," "," "," "," "," "," "," "]
["straat",10,345678907,"RWA","HA",null,null,null,null,null," "," "," "," "," "," "," "," "," "," "," ",{"$f":"\"GEM=\"&'Algemene gegevens'!$F$7&\" projectnr=\"&'Algemene gegevens'!$B$5&\" adres=\"&'Project HA'!A23&\" \"&'Project HA'!B23&\" eq=\"&'Project HA'!C23&\" AB-HA-fiche\"","v":"GEM=LEU projectnr=xx,xxx adres=straat 10 eq=345678907 AB-HA-fiche"},"1 document voor RWA en DWA aansluiting"]
["straat",10,345678907,"DWA","HA",null,null,null,null,null," "," "," "," "," "," "," "," "," "," "," "]
["straat",11,345678908,"RWA","HA",null,null,null,null,null," "," "," "," "," "," "," "," "," "," "," ",{"$f":"\"GEM=\"&'Algemene gegevens'!$F$7&\" projectnr=\"&'Algemene gegevens'!$B$5&\" adres=\"&'Project HA'!A25&\" \"&'Project HA'!B25&\" eq=\"&'Project HA'!C25&\" AB-HA-fiche\"","v":"GEM=LEU projectnr=xx,xxx adres=straat 11 eq=345678908 AB-HA-fiche"},"1 document voor RWA en DWA aansluiting"]
["straat",11,345678908,"DWA","HA",null,null,null,null,null," "," "," "," "," "," "," "," "," "," "," "]
["straat",12,345678909,"RWA","HA",null,null,null,null,null," "," "," "," "," "," "," "," "," "," "," ",{"$f":"\"GEM=\"&'Algemene gegevens'!$F$7&\" projectnr=\"&'Algemene gegevens'!$B$5&\" adres=\"&'Project HA'!A27&\" \"&'Project HA'!B27&\" eq=\"&'Project HA'!C27&\" AB-HA-fiche\"","v":"GEM=LEU projectnr=xx,xxx adres=straat 12 eq=345678909 AB-HA-fiche"},"1 document voor RWA en DWA aansluiting"]
["straat",12,345678909,"DWA","HA",null,null,null,null,null," "," "," "," "," "," "," "," "," "," "," "]
["straat",13,345678910,"RWA","HA",null,null,null,null,null," "," "," "," "," "," "," "," "," "," "," ",{"$f":"\"GEM=\"&'Algemene gegevens'!$F$7&\" projectnr=\"&'Algemene gegevens'!$B$5&\" adres=\"&'Project HA'!A29&\" \"&'Project HA'!B29&\" eq=\"&'Project HA'!C29&\" AB-HA-fiche\"","v":"GEM=LEU projectnr=xx,xxx adres=straat 13 eq=345678910 AB-HA-fiche"},"1 document voor RWA en DWA aansluiting"]
["straat",13,345678910,"DWA","HA",null,null,null,null,null," "," "," "," "," "," "," "," "," "," "," "]
[]
[]
["TOTAAL hoeveelheden:","RWA",null,null,null,null,null,null,null,null,{"$f":"SUMIF($D$5:$D33,$B33,K$5:K33)","v":0},{"$f":"SUMIF($D$5:$D33,$B33,L$5:L33)","v":0},{"$f":"SUMIF($D$5:$D33,$B33,M$5:M33)","v":0},{"$f":"SUMIF($D$5:$D33,$B33,N$5:N33)","v":0},{"$f":"SUMIF($D$5:$D33,$B33,O$5:O33)","v":0},{"$f":"SUMIF($D$5:$D33,$B33,P$5:P33)","v":0},{"$f":"SUMIF($D$5:$D33,$B33,Q$5:Q33)","v":0},{"$f":"SUMIF($D$5:$D33,$B33,R$5:R33)","v":0}]
[null,"DWA",null,null,null,null,null,null,null,null,{"$f":"SUMIF($D$5:$D34,$B34,K$5:K34)","v":0},{"$f":"SUMIF($D$5:$D34,$B34,L$5:L34)","v":0},{"$f":"SUMIF($D$5:$D34,$B34,M$5:M34)","v":0},{"$f":"SUMIF($D$5:$D34,$B34,N$5:N34)","v":0},{"$f":"SUMIF($D$5:$D34,$B34,O$5:O34)","v":0},{"$f":"SUMIF($D$5:$D34,$B34,P$5:P34)","v":0},{"$f":"SUMIF($D$5:$D34,$B34,Q$5:Q34)","v":0},{"$f":"SUMIF($D$5:$D34,$B34,R$5:R34)","v":0}]
[null,"GEM",null,null,null,null,null,null,null,null,{"$f":"SUMIF($D$5:$D35,$B35,K$5:K35)","v":0},{"$f":"SUMIF($D$5:$D35,$B35,L$5:L35)","v":0},{"$f":"SUMIF($D$5:$D35,$B35,M$5:M35)","v":0},{"$f":"SUMIF($D$5:$D35,$B35,N$5:N35)","v":0},{"$f":"SUMIF($D$5:$D35,$B35,O$5:O35)","v":0},{"$f":"SUMIF($D$5:$D35,$B35,P$5:P35)","v":0},{"$f":"SUMIF($D$5:$D35,$B35,Q$5:Q35)","v":0},{"$f":"SUMIF($D$5:$D35,$B35,R$5:R35)","v":0}]
[]
[]
[]
[]
[]
[null,null,null,null,null,null,null,null,null,null,null,null," "]

{"sheet":"Project WA","index":3,"n_rows":33,"n_cols":23,"rows_kept":33,"cut":false,"hidden":false,"merged":[[24,21,25,21],[24,22,25,22],[26,21,27,21],[26,22,27,22],[18,21,19,21],[18,22,19,22],[20,21,21,21],[20,22,21,22],[22,21,23,21],[22,22,23,22],[12,21,13,21],[12,22,13,22],[14,21,15,21],[14,22,15,22],[16,21,17,21],[16,22,17,22],[10,21,11,21],[10,22,11,22],[4,7,4,9],[6,22,7,22],[8,21,9,21],[8,22,9,22],[4,10,4,20],[6,21,7,21]]}
["Wachtaansluitingen voor onbebouwde percelen",null,null,null,{"$f":"COUNTA(C:C)-1","v":22}]
[]
["=> Door aannemer een plan bij te voegen waar welke wachtaansluiting voorzien is volgens 'volgnummer' ",null,null,null,null,null," ",null,null," ","  ","  ","  "]
[]
[null,null,null,null,null,null,null,"lambert coördinaten - deksel HA-putje",null,null,"HOEVEELHEDEN aansluiting"]
["Straat\n( + eventueel huisnummer)","Volgnr.\nof\nLot nr.","Equipmentnummer riolering","aard water (RWA/DWA/GEM)","soort\n(HA, WA)","diameter\n(mm)","materiaal\n(grès, PVC,PP)","X coördinaat","Y coördinaat","Z coördinaat","Mof\n(st)","Buis\n(m)","Bocht\n(st)","Y/T-stuk\n(st)","Krimpmof\n(st)","Koppelstuk\n(st)","Reductie\n(st)","Stop\n(st)","Andere","diameter HA-putje of T-stuk\n( mm)","Terugslag-klep in HA-putje\n(ja/nee)","naamgeving fiche"]
["straat","01",{"$f":"'Algemene gegevens'!$B$5&\"-volgnr\"&'Project WA'!B7","v":"xx,xxx-volgnr01"},"RWA","WA",null,null,null,null,null,{"$f":"IFERROR(IF($D7=\"RWA\",INDIRECT(\"'\"&$C7&\"'!$I$20\"),IF($D7=\"DWA\",INDIRECT(\"'\"&$C7&\"'!$G$20\"),IF($D7=\"GEM\",INDIRECT(\"'\"&$C7&\"'!$G$20\"),\"\"))),\" \")","v":" "},{"$f":"IFERROR(IF($D7=\"RWA\",INDIRECT(\"'\"&$C7&\"'!$I$21\"),IF($D7=\"DWA\",INDIRECT(\"'\"&$C7&\"'!$G$21\"),IF($D7=\"GEM\",INDIRECT(\"'\"&$C7&\"'!$G$21\"),\"\"))),\" \")","v":" "},{"$f":"IFERROR(IF($D7=\"RWA\",INDIRECT(\"'\"&$C7&\"'!$I$22\"),IF($D7=\"DWA\",INDIRECT(\"'\"&$C7&\"'!$G$22\"),IF($D7=\"GEM\",INDIRECT(\"'\"&$C7&\"'!$G$22\"),\"\"))),\" \")","v":" "},{"$f":"IFERROR(IF($D7=\"RWA\",INDIRECT(\"'\"&$C7&\"'!$I$23\"),IF($D7=\"DWA\",INDIRECT(\"'\"&$C7&\"'!$G$23\"),IF($D7=\"GEM\",INDIRECT(\"'\"&$C7&\"'!$G$23\"),\"\"))),\" \")","v":" "},{"$f":"IFERROR(IF($D7=\"RWA\",INDIRECT(\"'\"&$C7&\"'!$I$24\"),IF($D7=\"DWA\",INDIRECT(\"'\"&$C7&\"'!$G$24\"),IF($D7=\"GEM\",INDIRECT(\"'\"&$C7&\"'!$G$24\"),\"\"))),\" \")","v":" "},{"$f":"IFERROR(IF($D7=\"RWA\",INDIRECT(\"'\"&$C7&\"'!$I$25\"),IF($D7=\"DWA\",INDIRECT(\"'\"&$C7&\"'!$G$25\"),IF($D7=\"GEM\",INDIRECT(\"'\"&$C7&\"'!$G$25\"),\"\"))),\" \")","v":" "},{"$f":"IFERROR(IF($D7=\"RWA\",INDIRECT(\"'\"&$C7&\"'!$I$26\"),IF($D7=\"DWA\",INDIRECT(\"'\"&$C7&\"'!$G$26\"),IF($D7=\"GEM\",INDIRECT(\"'\"&$C7&\"'!$G$26\"),\"\"))),\" \")","v":" "},{"$f":"IFERROR(IF($D7=\"RWA\",INDIRECT(\"'\"&$C7&\"'!$I$27\"),IF($D7=\"DWA\",INDIRECT(\"'\"&$C7&\"'!$G$27\"),IF($D7=\"GEM\",INDIRECT(\"'\"&$C7&\"'!$G$27\"),\"\"))),\" \")","v":" "},{"$f":"IFERROR(IF($D7=\"RWA\",INDIRECT(\"'\"&$C7&\"'!$I$28\"),IF($D7=\"DWA\",INDIRECT(\"'\"&$C7&\"'!$G$28\"),IF($D7=\"GEM\",INDIRECT(\"'\"&$C7&\"'!$G$28\"),\"\"))),\" \")","v":" "},{"$f":"IFERROR(IF($D7=\"RWA\",INDIRECT(\"'\"&$C7&\"'!$I$29\"),IF($D7=\"DWA\",INDIRECT(\"'\"&$C7&\"'!$G$29\"),IF($D7=\"GEM\",INDIRECT(\"'\"&$C7&\"'!$G$29\"),\"\"))),\" \")","v":" "},{"$f":"IFERROR(IF($D7=\"RWA\",INDIRECT(\"'\"&$C7&\"'!$I$30\"),IF($D7=\"DWA\",INDIRECT(\"'\"&$C7&\"'!$G$30\"),IF($D7=\"GEM\",INDIRECT(\"'\"&$C7&\"'!$G$30\"),\"\"))),\" \")","v":" "},{"$f":"\"GEM=\"&'Algemene gegevens'!$F$7&\" projectnr=\"&'Algemene gegevens'!$B$5&\" adres=\"&'Project WA'!A7&\" \"&\"wa=\"&'Project WA'!C7&\" AB-HA-fiche\"","v":"GEM=LEU projectnr=xx,xxx adres=straat wa=xx,xxx-volgnr01 AB-HA-fiche"},"1 document voor RWA en DWA aansluiting"]
[{"$f":"A7","v":"straat"},"01",{"$f":"'Algemene gegevens'!$B$5&\"-volgnr\"&'Project WA'!B8","v":"xx,xxx-volgnr01"},"DWA","WA",null,null,null,null,null,{"$f":"IFERROR(IF($D8=\"RWA\",INDIRECT(\"'\"&$C8&\"'!$I$20\"),IF($D8=\"DWA\",INDIRECT(\"'\"&$C8&\"'!$G$20\"),IF($D8=\"GEM\",INDIRECT(\"'\"&$C8&\"'!$G$20\"),\"\"))),\" \")","v":" "},{"$f":"IFERROR(IF($D8=\"RWA\",INDIRECT(\"'\"&$C8&\"'!$I$21\"),IF($D8=\"DWA\",INDIRECT(\"'\"&$C8&\"'!$G$21\"),IF($D8=\"GEM\",INDIRECT(\"'\"&$C8&\"'!$G$21\"),\"\"))),\" \")","v":" "},{"$f":"IFERROR(IF($D8=\"RWA\",INDIRECT(\"'\"&$C8&\"'!$I$22\"),IF($D8=\"DWA\",INDIRECT(\"'\"&$C8&\"'!$G$22\"),IF($D8=\"GEM\",INDIRECT(\"'\"&$C8&\"'!$G$22\"),\"\"))),\" \")","v":" "},{"$f":"IFERROR(IF($D8=\"RWA\",INDIRECT(\"'\"&$C8&\"'!$I$23\"),IF($D8=\"DWA\",INDIRECT(\"'\"&$C8&\"'!$G$23\"),IF($D8=\"GEM\",INDIRECT(\"'\"&$C8&\"'!$G$23\"),\"\"))),\" \")","v":" "},{"$f":"IFERROR(IF($D8=\"RWA\",INDIRECT(\"'\"&$C8&\"'!$I$24\"),IF($D8=\"DWA\",INDIRECT(\"'\"&$C8&\"'!$G$24\"),IF($D8=\"GEM\",INDIRECT(\"'\"&$C8&\"'!$G$24\"),\"\"))),\" \")","v":" "},{"$f":"IFERROR(IF($D8=\"RWA\",INDIRECT(\"'\"&$C8&\"'!$I$25\"),IF($D8=\"DWA\",INDIRECT(\"'\"&$C8&\"'!$G$25\"),IF($D8=\"GEM\",INDIRECT(\"'\"&$C8&\"'!$G$25\"),\"\"))),\" \")","v":" "},{"$f":"IFERROR(IF($D8=\"RWA\",INDIRECT(\"'\"&$C8&\"'!$I$26\"),IF($D8=\"DWA\",INDIRECT(\"'\"&$C8&\"'!$G$26\"),IF($D8=\"GEM\",INDIRECT(\"'\"&$C8&\"'!$G$26\"),\"\"))),\" \")","v":" "},{"$f":"IFERROR(IF($D8=\"RWA\",INDIRECT(\"'\"&$C8&\"'!$I$27\"),IF($D8=\"DWA\",INDIRECT(\"'\"&$C8&\"'!$G$27\"),IF($D8=\"GEM\",INDIRECT(\"'\"&$C8&\"'!$G$27\"),\"\"))),\" \")","v":" "},{"$f":"IFERROR(IF($D8=\"RWA\",INDIRECT(\"'\"&$C8&\"'!$I$28\"),IF($D8=\"DWA\",INDIRECT(\"'\"&$C8&\"'!$G$28\"),IF($D8=\"GEM\",INDIRECT(\"'\"&$C8&\"'!$G$28\"),\"\"))),\" \")","v":" "},{"$f":"IFERROR(IF($D8=\"RWA\",INDIRECT(\"'\"&$C8&\"'!$I$29\"),IF($D8=\"DWA\",INDIRECT(\"'\"&$C8&\"'!$G$29\"),IF($D8=\"GEM\",INDIRECT(\"'\"&$C8&\"'!$G$29\"),\"\"))),\" \")","v":" "},{"$f":"IFERROR(IF($D8=\"RWA\",INDIRECT(\"'\"&$C8&\"'!$I$30\"),IF($D8=\"DWA\",INDIRECT(\"'\"&$C8&\"'!$G$30\"),IF($D8=\"GEM\",INDIRECT(\"'\"&$C8&\"'!$G$30\"),\"\"))),\" \")","v":" "}]
["straat","02",{"$f":"'Algemene gegevens'!$B$5&\"-volgnr\"&'Project WA'!B9","v":"xx,xxx-volgnr02"},"RWA","WA",null,null,null,null,null," "," "," "," "," "," "," "," "," "," "," ",{"$f":"\"GEM=\"&'Algemene gegevens'!$F$7&\" projectnr=\"&'Algemene gegevens'!$B$5&\" adres=\"&'Project WA'!A9&\" \"&\"wa=\"&'Project WA'!C9&\" AB-HA-fiche\"","v":"GEM=LEU projectnr=xx,xxx adres=straat wa=xx,xxx-volgnr02 AB-HA-fiche"},"1 document voor RWA en DWA aansluiting"]
[{"$f":"A9","v":"straat"},"02",{"$f":"'Algemene gegevens'!$B$5&\"-volgnr\"&'Project WA'!B10","v":"xx,xxx-volgnr02"},"DWA","WA",null,null,null,null,null," "," "," "," "," "," "," "," "," "," "," "]
["straat","03",{"$f":"'Algemene gegevens'!$B$5&\"-volgnr\"&'Project WA'!B11","v":"xx,xxx-volgnr03"},"RWA","WA",null,null,null,null,null," "," ",{"$f":"IFERROR(IF($D11=\"RWA\",INDIRECT(\"'\"&$C11&\"'!$I$22\"),IF($D11=\"DWA\",INDIRECT(\"'\"&$C11&\"'!$G$22\"),IF($D11=\"GEM\",INDIRECT(\"'\"&$C11&\"'!$G$22\"),\"\"))),\" \")","v":" "}," "," "," "," "," "," "," "," ",{"$f":"\"GEM=\"&'Algemene gegevens'!$F$7&\" projectnr=\"&'Algemene gegevens'!$B$5&\" adres=\"&'Project WA'!A11&\" \"&\"wa=\"&'Project WA'!C11&\" AB-HA-fiche\"","v":"GEM=LEU projectnr=xx,xxx adres=straat wa=xx,xxx-volgnr03 AB-HA-fiche"},"1 document voor RWA en DWA aansluiting"]
[{"$f":"A11","v":"straat"},"03",{"$f":"'Algemene gegevens'!$B$5&\"-volgnr\"&'Project WA'!B12","v":"xx,xxx-volgnr03"},"DWA","WA",null,null,null,null,null," "," "," "," "," "," "," "," "," "," "," "]
["straat","04",{"$f":"'Algemene gegevens'!$B$5&\"-volgnr\"&'Project WA'!B13","v":"xx,xxx-volgnr04"},"RWA","WA",null,null,null,null,null," "," "," "," "," "," "," "," "," "," "," ",{"$f":"\"GEM=\"&'Algemene gegevens'!$F$7&\" projectnr=\"&'Algemene gegevens'!$B$5&\" adres=\"&'Project WA'!A13&\" \"&\"wa=\"&'Project WA'!C13&\" AB-HA-fiche\"","v":"GEM=LEU projectnr=xx,xxx adres=straat wa=xx,xxx-volgnr04 AB-HA-fiche"},"1 document voor RWA en DWA aansluiting"]
[{"$f":"A13","v":"straat"},"04",{"$f":"'Algemene gegevens'!$B$5&\"-volgnr\"&'Project WA'!B14","v":"xx,xxx-volgnr04"},"DWA","WA",null,null,null,null,null," "," "," "," "," "," "," "," "," "," "," "]
["straat","05",{"$f":"'Algemene gegevens'!$B$5&\"-volgnr\"&'Project WA'!B15","v":"xx,xxx-volgnr05"},"RWA","WA",null,null,null,null,null," "," "," "," "," "," "," "," "," "," "," ",{"$f":"\"GEM=\"&'Algemene gegevens'!$F$7&\" projectnr=\"&'Algemene gegevens'!$B$5&\" adres=\"&'Project WA'!A15&\" \"&\"wa=\"&'Project WA'!C15&\" AB-HA-fiche\"","v":"GEM=LEU projectnr=xx,xxx adres=straat wa=xx,xxx-volgnr05 AB-HA-fiche"},"1 document voor RWA en DWA aansluiting"]
[{"$f":"A15","v":"straat"},"05",{"$f":"'Algemene gegevens'!$B$5&\"-volgnr\"&'Project WA'!B16","v":"xx,xxx-volgnr05"},"DWA","WA",null,null,null,null,null," "," "," "," "," "," "," "," "," "," "," "]
["straat","06",{"$f":"'Algemene gegevens'!$B$5&\"-volgnr\"&'Project WA'!B17","v":"xx,xxx-volgnr06"},"RWA","WA",null,null,null,null,null," "," "," "," "," "," "," "," "," "," "," ",{"$f":"\"GEM=\"&'Algemene gegevens'!$F$7&\" projectnr=\"&'Algemene gegevens'!$B$5&\" adres=\"&'Project WA'!A17&\" \"&\"wa=\"&'Project WA'!C17&\" AB-HA-fiche\"","v":"GEM=LEU projectnr=xx,xxx adres=straat wa=xx,xxx-volgnr06 AB-HA-fiche"},"1 document voor RWA en DWA aansluiting"]
[{"$f":"A17","v":"straat"},"06",{"$f":"'Algemene gegevens'!$B$5&\"-volgnr\"&'Project WA'!B18","v":"xx,xxx-volgnr06"},"DWA","WA",null,null,null,null,null," "," "," "," "," "," "," "," "," "," "," "]
["straat","07",{"$f":"'Algemene gegevens'!$B$5&\"-volgnr\"&'Project WA'!B19","v":"xx,xxx-volgnr07"},"RWA","WA",null,null,null,null,null," "," "," "," "," "," "," "," "," "," "," ",{"$f":"\"GEM=\"&'Algemene gegevens'!$F$7&\" projectnr=\"&'Algemene gegevens'!$B$5&\" adres=\"&'Project WA'!A19&\" \"&\"wa=\"&'Project WA'!C19&\" AB-HA-fiche\"","v":"GEM=LEU projectnr=xx,xxx adres=straat wa=xx,xxx-volgnr07 AB-HA-fiche"},"1 document voor RWA en DWA aansluiting"]
[{"$f":"A19","v":"straat"},"07",{"$f":"'Algemene gegevens'!$B$5&\"-volgnr\"&'Project WA'!B20","v":"xx,xxx-volgnr07"},"DWA","WA",null,null,null,null,null," "," "," "," "," "," "," "," "," "," "," "]
["straat","08",{"$f":"'Algemene gegevens'!$B$5&\"-volgnr\"&'Project WA'!B21","v":"xx,xxx-volgnr08"},"RWA","WA",null,null,null,null,null," "," "," "," "," "," "," "," "," "," "," ",{"$f":"\"GEM=\"&'Algemene gegevens'!$F$7&\" projectnr=\"&'Algemene gegevens'!$B$5&\" adres=\"&'Project WA'!A21&\" \"&\"wa=\"&'Project WA'!C21&\" AB-HA-fiche\"","v":"GEM=LEU projectnr=xx,xxx adres=straat wa=xx,xxx-volgnr08 AB-HA-fiche"},"1 document voor RWA en DWA aansluiting"]
[{"$f":"A21","v":"straat"},"08",{"$f":"'Algemene gegevens'!$B$5&\"-volgnr\"&'Project WA'!B22","v":"xx,xxx-volgnr08"},"DWA","WA",null,null,null,null,null," "," "," "," "," "," "," "," "," "," "," "]
["straat","09",{"$f":"'Algemene gegevens'!$B$5&\"-volgnr\"&'Project WA'!B23","v":"xx,xxx-volgnr09"},"RWA","WA",null,null,null,null,null," "," "," "," "," "," "," "," "," "," "," ",{"$f":"\"GEM=\"&'Algemene gegevens'!$F$7&\" projectnr=\"&'Algemene gegevens'!$B$5&\" adres=\"&'Project WA'!A23&\" \"&\"wa=\"&'Project WA'!C23&\" AB-HA-fiche\"","v":"GEM=LEU projectnr=xx,xxx adres=straat wa=xx,xxx-volgnr09 AB-HA-fiche"},"1 document voor RWA en DWA aansluiting"]
[{"$f":"A23","v":"straat"},"09",{"$f":"'Algemene gegevens'!$B$5&\"-volgnr\"&'Project WA'!B24","v":"xx,xxx-volgnr09"},"DWA","WA",null,null,null,null,null," "," "," "," "," "," "," "," "," "," "," "]
["straat",10,{"$f":"'Algemene gegevens'!$B$5&\"-volgnr\"&'Project WA'!B25","v":"xx,xxx-volgnr10"},"RWA","WA",null,null," ",null,null," "," "," "," "," "," "," "," "," "," "," ",{"$f":"\"GEM=\"&'Algemene gegevens'!$F$7&\" projectnr=\"&'Algemene gegevens'!$B$5&\" adres=\"&'Project WA'!A25&\" \"&\"wa=\"&'Project WA'!C25&\" AB-HA-fiche\"","v":"GEM=LEU projectnr=xx,xxx adres=straat wa=xx,xxx-volgnr10 AB-HA-fiche"},"1 document voor RWA en DWA aansluiting"]
[{"$f":"A25","v":"straat"},10,{"$f":"'Algemene gegevens'!$B$5&\"-volgnr\"&'Project WA'!B26","v":"xx,xxx-volgnr10"},"DWA","WA",null,null,null,null,null," "," "," "," "," "," "," "," "," "," "," "]
["straat",11,{"$f":"'Algemene gegevens'!$B$5&\"-volgnr\"&'Project WA'!B27","v":"xx,xxx-volgnr11"},"RWA","WA",null,null,null,null,null," "," "," "," "," "," "," "," "," "," "," ",{"$f":"\"GEM=\"&'Algemene gegevens'!$F$7&\" projectnr=\"&'Algemene gegevens'!$B$5&\" adres=\"&'Project WA'!A27&\" \"&\"wa=\"&'Project WA'!C27&\" AB-HA-fiche\"","v":"GEM=LEU projectnr=xx,xxx adres=straat wa=xx,xxx-volgnr11 AB-HA-fiche"},"1 document voor RWA en DWA aansluiting"]
[{"$f":"A27","v":"straat"},11,{"$f":"'Algemene gegevens'!$B$5&\"-volgnr\"&'Project WA'!B28","v":"xx,xxx-volgnr11"},"DWA","WA",null,null,null,null,null," "," "," "," "," "," "," "," "," "," "," "]
[]
[]
["TOTAAL hoeveelheden:","RWA",null,null,null,null,null,null,null,null,{"$f":"SUMIF($D$7:$D$30,$B$31,K$7:K28)","v":0},{"$f":"SUMIF($D$7:$D$30,$B$31,L$7:L28)","v":0},{"$f":"SUMIF($D$7:$D$30,$B$31,M$7:M28)","v":0},{"$f":"SUMIF($D$7:$D$30,$B$31,N$7:N28)","v":0},{"$f":"SUMIF($D$7:$D$30,$B$31,O$7:O28)","v":0},{"$f":"SUMIF($D$7:$D$30,$B$31,P$7:P28)","v":0},{"$f":"SUMIF($D$7:$D$30,$B$31,Q$7:Q28)","v":0},{"$f":"SUMIF($D$7:$D$30,$B$31,R$7:R28)","v":0},{"$f":"SUMIF($D$7:$D$30,$B$31,S$7:S28)","v":0}]
[null,"DWA",null,null,null,null,null,null,null,null,{"$f":"SUMIF($D$7:$D$31,$B$32,K$7:K28)","v":0},{"$f":"SUMIF($D$7:$D$31,$B$32,L$7:L28)","v":0},{"$f":"SUMIF($D$7:$D$31,$B$32,M$7:M28)","v":0},{"$f":"SUMIF($D$7:$D$31,$B$32,N$7:N28)","v":0},{"$f":"SUMIF($D$7:$D$31,$B$32,O$7:O28)","v":0},{"$f":"SUMIF($D$7:$D$31,$B$32,P$7:P28)","v":0},{"$f":"SUMIF($D$7:$D$31,$B$32,Q$7:Q28)","v":0},{"$f":"SUMIF($D$7:$D$31,$B$32,R$7:R28)","v":0},{"$f":"SUMIF($D$7:$D$31,$B$32,S$7:S28)","v":0}]
[null,"GEM",null,null,null,null,null,null,null,null,{"$f":"SUMIF($D$7:$D$31,$B$52,K$7:K30)","v":0},{"$f":"SUMIF($D$7:$D$31,$B$52,L$7:L30)","v":0},{"$f":"SUMIF($D$7:$D$31,$B$52,M$7:M30)","v":0},{"$f":"SUMIF($D$7:$D$31,$B$52,N$7:N30)","v":0},{"$f":"SUMIF($D$7:$D$31,$B$52,O$7:O30)","v":0},{"$f":"SUMIF($D$7:$D$31,$B$52,P$7:P30)","v":0},{"$f":"SUMIF($D$7:$D$31,$B$52,Q$7:Q30)","v":0},{"$f":"SUMIF($D$7:$D$31,$B$52,R$7:R30)","v":0},{"$f":"SUMIF($D$7:$D$31,$B$52,S$7:S30)","v":0}]

{"sheet":"Project kolk","index":4,"n_rows":33,"n_cols":17,"rows_kept":33,"cut":false,"hidden":false,"merged":[[4,7,4,15]]}
["Kolkaansluitingen",null,null,null,{"$f":"COUNTA(C:C)-1","v":24}]
[]
["=> Door aannemer een plan bij te voegen waar welke kolkaansluiting voorzien is volgens 'volgnummer' "]
[]
[null,null,null,null,null,null,null,"HOEVEELHEDEN aansluiting"]
["Straat\n( + eventueel huisnummer)","Volgnr.","Equipmentnummer riolering","aard water (RWA/DWA/GEM)","soort","diameter\n(mm)","materiaal\n(grès, PVC,PP)","Mof\n(st)","Buis\n(m)","Bocht\n(st)","Y/T-stuk\n(st)","Krimpmof\n(st)","Koppelstuk\n(st)","Reductie\n(st)","Stop\n(st)","Andere","naamgeving fiche"]
["straat","01",{"$f":"'Algemene gegevens'!$B$5&\"-kolknr\"&B7","v":"xx,xxx-kolknr01"},"RWA","kolk",null,null,{"$f":"IFERROR(INDIRECT(\"'\"&$C7&\"'!$E$20\"),\" \")","v":" "},{"$f":"IFERROR(INDIRECT(\"'\"&$C7&\"'!$E$21\"),\" \")","v":" "},{"$f":"IFERROR(INDIRECT(\"'\"&$C7&\"'!$E$22\"),\" \")","v":" "},{"$f":"IFERROR(INDIRECT(\"'\"&$C7&\"'!$E$23\"),\" \")","v":" "},{"$f":"IFERROR(INDIRECT(\"'\"&$C7&\"'!$E$24\"),\" \")","v":" "},{"$f":"IFERROR(INDIRECT(\"'\"&$C7&\"'!$E$25\"),\" \")","v":" "},{"$f":"IFERROR(INDIRECT(\"'\"&$C7&\"'!$E$26\"),\" \")","v":" "},{"$f":"IFERROR(INDIRECT(\"'\"&$C7&\"'!$E$27\"),\" \")","v":" "},{"$f":"IFERROR(INDIRECT(\"'\"&$C7&\"'!$E$28\"),\" \")","v":" "},{"$f":"\"GEM=\"&'Algemene gegevens'!$F$7&\" projectnr=\"&'Algemene gegevens'!$B$5&\" adres=\"&'Project kolk'!A7&\" ko=\"&C7&\" AB-kolk-fiche\"","v":"GEM=LEU projectnr=xx,xxx adres=straat ko=xx,xxx-kolknr01 AB-kolk-fiche"}]
["straat","02",{"$f":"'Algemene gegevens'!$B$5&\"-kolknr\"&B8","v":"xx,xxx-kolknr02"},"RWA","kolk",null,null,{"$f":"IFERROR(INDIRECT(\"'\"&$C8&\"'!$E$20\"),\" \")","v":" "},{"$f":"IFERROR(INDIRECT(\"'\"&$C8&\"'!$E$21\"),\" \")","v":" "},{"$f":"IFERROR(INDIRECT(\"'\"&$C8&\"'!$E$22\"),\" \")","v":" "},{"$f":"IFERROR(INDIRECT(\"'\"&$C8&\"'!$E$23\"),\" \")","v":" "},{"$f":"IFERROR(INDIRECT(\"'\"&$C8&\"'!$E$24\"),\" \")","v":" "},{"$f":"IFERROR(INDIRECT(\"'\"&$C8&\"'!$E$25\"),\" \")","v":" "},{"$f":"IFERROR(INDIRECT(\"'\"&$C8&\"'!$E$26\"),\" \")","v":" "},{"$f":"IFERROR(INDIRECT(\"'\"&$C8&\"'!$E$27\"),\" \")","v":" "},{"$f":"IFERROR(INDIRECT(\"'\"&$C8&\"'!$E$28\"),\" \")","v":" "},{"$f":"\"GEM=\"&'Algemene gegevens'!$F$7&\" projectnr=\"&'Algemene gegevens'!$B$5&\" adres=\"&'Project kolk'!A8&\" ko=\"&C8&\" AB-kolk-fiche\"","v":"GEM=LEU projectnr=xx,xxx adres=straat ko=xx,xxx-kolknr02 AB-kolk-fiche"}]
["straat","03",{"$f":"'Algemene gegevens'!$B$5&\"-kolknr\"&B9","v":"xx,xxx-kolknr03"},"RWA","kolk",null,null," "," "," "," "," "," "," "," "," ",{"$f":"\"GEM=\"&'Algemene gegevens'!$F$7&\" projectnr=\"&'Algemene gegevens'!$B$5&\" adres=\"&'Project kolk'!A9&\" ko=\"&C9&\" AB-kolk-fiche\"","v":"GEM=LEU projectnr=xx,xxx adres=straat ko=xx,xxx-kolknr03 AB-kolk-fiche"}]
["straat","04",{"$f":"'Algemene gegevens'!$B$5&\"-kolknr\"&B10","v":"xx,xxx-kolknr04"},"RWA","kolk",null,null," "," "," "," "," "," "," "," "," ",{"$f":"\"GEM=\"&'Algemene gegevens'!$F$7&\" projectnr=\"&'Algemene gegevens'!$B$5&\" adres=\"&'Project kolk'!A10&\" ko=\"&C10&\" AB-kolk-fiche\"","v":"GEM=LEU projectnr=xx,xxx adres=straat ko=xx,xxx-kolknr04 AB-kolk-fiche"}]
["straat","05",{"$f":"'Algemene gegevens'!$B$5&\"-kolknr\"&B11","v":"xx,xxx-kolknr05"},"RWA","kolk",null,null," "," "," "," "," "," "," "," "," ",{"$f":"\"GEM=\"&'Algemene gegevens'!$F$7&\" projectnr=\"&'Algemene gegevens'!$B$5&\" adres=\"&'Project kolk'!A11&\" ko=\"&C11&\" AB-kolk-fiche\"","v":"GEM=LEU projectnr=xx,xxx adres=straat ko=xx,xxx-kolknr05 AB-kolk-fiche"}]
["straat","06",{"$f":"'Algemene gegevens'!$B$5&\"-kolknr\"&B12","v":"xx,xxx-kolknr06"},"RWA","kolk",null,null," "," "," "," "," "," "," "," "," ",{"$f":"\"GEM=\"&'Algemene gegevens'!$F$7&\" projectnr=\"&'Algemene gegevens'!$B$5&\" adres=\"&'Project kolk'!A12&\" ko=\"&C12&\" AB-kolk-fiche\"","v":"GEM=LEU projectnr=xx,xxx adres=straat ko=xx,xxx-kolknr06 AB-kolk-fiche"}]
["straat","07",{"$f":"'Algemene gegevens'!$B$5&\"-kolknr\"&B13","v":"xx,xxx-kolknr07"},"RWA","kolk",null,null," "," "," "," "," "," "," "," "," ",{"$f":"\"GEM=\"&'Algemene gegevens'!$F$7&\" projectnr=\"&'Algemene gegevens'!$B$5&\" adres=\"&'Project kolk'!A13&\" ko=\"&C13&\" AB-kolk-fiche\"","v":"GEM=LEU projectnr=xx,xxx adres=straat ko=xx,xxx-kolknr07 AB-kolk-fiche"}]
["straat","08",{"$f":"'Algemene gegevens'!$B$5&\"-kolknr\"&B14","v":"xx,xxx-kolknr08"},"RWA","kolk",null,null," "," "," "," "," "," "," "," "," ",{"$f":"\"GEM=\"&'Algemene gegevens'!$F$7&\" projectnr=\"&'Algemene gegevens'!$B$5&\" adres=\"&'Project kolk'!A14&\" ko=\"&C14&\" AB-kolk-fiche\"","v":"GEM=LEU projectnr=xx,xxx adres=straat ko=xx,xxx-kolknr08 AB-kolk-fiche"}]
["straat","09",{"$f":"'Algemene gegevens'!$B$5&\"-kolknr\"&B15","v":"xx,xxx-kolknr09"},"RWA","kolk",null,null," "," "," "," "," "," "," "," "," ",{"$f":"\"GEM=\"&'Algemene gegevens'!$F$7&\" projectnr=\"&'Algemene gegevens'!$B$5&\" adres=\"&'Project kolk'!A15&\" ko=\"&C15&\" AB-kolk-fiche\"","v":"GEM=LEU projectnr=xx,xxx adres=straat ko=xx,xxx-kolknr09 AB-kolk-fiche"}]
["straat",10,{"$f":"'Algemene gegevens'!$B$5&\"-kolknr\"&B16","v":"xx,xxx-kolknr10"},"RWA","kolk",null,null," "," "," "," "," "," "," "," "," ",{"$f":"\"GEM=\"&'Algemene gegevens'!$F$7&\" projectnr=\"&'Algemene gegevens'!$B$5&\" adres=\"&'Project kolk'!A16&\" ko=\"&C16&\" AB-kolk-fiche\"","v":"GEM=LEU projectnr=xx,xxx adres=straat ko=xx,xxx-kolknr10 AB-kolk-fiche"}]
["straat",11,{"$f":"'Algemene gegevens'!$B$5&\"-kolknr\"&B17","v":"xx,xxx-kolknr11"},"RWA","kolk",null,null," "," "," "," "," "," "," "," "," ",{"$f":"\"GEM=\"&'Algemene gegevens'!$F$7&\" projectnr=\"&'Algemene gegevens'!$B$5&\" adres=\"&'Project kolk'!A17&\" ko=\"&C17&\" AB-kolk-fiche\"","v":"GEM=LEU projectnr=xx,xxx adres=straat ko=xx,xxx-kolknr11 AB-kolk-fiche"}]
["straat",12,{"$f":"'Algemene gegevens'!$B$5&\"-kolknr\"&B18","v":"xx,xxx-kolknr12"},"RWA","kolk",null,null," "," "," "," "," "," "," "," "," ",{"$f":"\"GEM=\"&'Algemene gegevens'!$F$7&\" projectnr=\"&'Algemene gegevens'!$B$5&\" adres=\"&'Project kolk'!A18&\" ko=\"&C18&\" AB-kolk-fiche\"","v":"GEM=LEU projectnr=xx,xxx adres=straat ko=xx,xxx-kolknr12 AB-kolk-fiche"}]
["straat",13,{"$f":"'Algemene gegevens'!$B$5&\"-kolknr\"&B19","v":"xx,xxx-kolknr13"},"RWA","kolk",null,null," "," "," "," "," "," "," "," "," ",{"$f":"\"GEM=\"&'Algemene gegevens'!$F$7&\" projectnr=\"&'Algemene gegevens'!$B$5&\" adres=\"&'Project kolk'!A19&\" ko=\"&C19&\" AB-kolk-fiche\"","v":"GEM=LEU projectnr=xx,xxx adres=straat ko=xx,xxx-kolknr13 AB-kolk-fiche"}]
["straat",14,{"$f":"'Algemene gegevens'!$B$5&\"-kolknr\"&B20","v":"xx,xxx-kolknr14"},"RWA","kolk",null,null," "," "," "," "," "," "," "," "," ",{"$f":"\"GEM=\"&'Algemene gegevens'!$F$7&\" projectnr=\"&'Algemene gegevens'!$B$5&\" adres=\"&'Project kolk'!A20&\" ko=\"&C20&\" AB-kolk-fiche\"","v":"GEM=LEU projectnr=xx,xxx adres=straat ko=xx,xxx-kolknr14 AB-kolk-fiche"}]
["straat",15,{"$f":"'Algemene gegevens'!$B$5&\"-kolknr\"&B21","v":"xx,xxx-kolknr15"},"RWA","kolk",null,null," "," "," "," "," "," "," "," "," ",{"$f":"\"GEM=\"&'Algemene gegevens'!$F$7&\" projectnr=\"&'Algemene gegevens'!$B$5&\" adres=\"&'Project kolk'!A21&\" ko=\"&C21&\" AB-kolk-fiche\"","v":"GEM=LEU projectnr=xx,xxx adres=straat ko=xx,xxx-kolknr15 AB-kolk-fiche"}]
["straat",16,{"$f":"'Algemene gegevens'!$B$5&\"-kolknr\"&B22","v":"xx,xxx-kolknr16"},"RWA","kolk",null,null," "," "," "," "," "," "," "," "," ",{"$f":"\"GEM=\"&'Algemene gegevens'!$F$7&\" projectnr=\"&'Algemene gegevens'!$B$5&\" adres=\"&'Project kolk'!A22&\" ko=\"&C22&\" AB-kolk-fiche\"","v":"GEM=LEU projectnr=xx,xxx adres=straat ko=xx,xxx-kolknr16 AB-kolk-fiche"}]
["straat",17,{"$f":"'Algemene gegevens'!$B$5&\"-kolknr\"&B23","v":"xx,xxx-kolknr17"},"RWA","kolk",null,null," "," "," "," "," "," "," "," "," ",{"$f":"\"GEM=\"&'Algemene gegevens'!$F$7&\" projectnr=\"&'Algemene gegevens'!$B$5&\" adres=\"&'Project kolk'!A23&\" ko=\"&C23&\" AB-kolk-fiche\"","v":"GEM=LEU projectnr=xx,xxx adres=straat ko=xx,xxx-kolknr17 AB-kolk-fiche"}]
["straat",18,{"$f":"'Algemene gegevens'!$B$5&\"-kolknr\"&B24","v":"xx,xxx-kolknr18"},"RWA","kolk",null,null," "," "," "," "," "," "," "," "," ",{"$f":"\"GEM=\"&'Algemene gegevens'!$F$7&\" projectnr=\"&'Algemene gegevens'!$B$5&\" adres=\"&'Project kolk'!A24&\" ko=\"&C24&\" AB-kolk-fiche\"","v":"GEM=LEU projectnr=xx,xxx adres=straat ko=xx,xxx-kolknr18 AB-kolk-fiche"}]
["straat",19,{"$f":"'Algemene gegevens'!$B$5&\"-kolknr\"&B25","v":"xx,xxx-kolknr19"},"RWA","kolk",null,null," "," "," "," "," "," "," "," "," ",{"$f":"\"GEM=\"&'Algemene gegevens'!$F$7&\" projectnr=\"&'Algemene gegevens'!$B$5&\" adres=\"&'Project kolk'!A25&\" ko=\"&C25&\" AB-kolk-fiche\"","v":"GEM=LEU projectnr=xx,xxx adres=straat ko=xx,xxx-kolknr19 AB-kolk-fiche"}]
["straat",20,{"$f":"'Algemene gegevens'!$B$5&\"-kolknr\"&B26","v":"xx,xxx-kolknr20"},"RWA","kolk",null,null," "," "," "," "," "," "," "," "," ",{"$f":"\"GEM=\"&'Algemene gegevens'!$F$7&\" projectnr=\"&'Algemene gegevens'!$B$5&\" adres=\"&'Project kolk'!A26&\" ko=\"&C26&\" AB-kolk-fiche\"","v":"GEM=LEU projectnr=xx,xxx adres=straat ko=xx,xxx-kolknr20 AB-kolk-fiche"}]
["straat",21,{"$f":"'Algemene gegevens'!$B$5&\"-kolknr\"&B27","v":"xx,xxx-kolknr21"},"RWA","kolk",null,null," "," "," "," "," "," "," "," "," ",{"$f":"\"GEM=\"&'Algemene gegevens'!$F$7&\" projectnr=\"&'Algemene gegevens'!$B$5&\" adres=\"&'Project kolk'!A27&\" ko=\"&C27&\" AB-kolk-fiche\"","v":"GEM=LEU projectnr=xx,xxx adres=straat ko=xx,xxx-kolknr21 AB-kolk-fiche"}]
["straat",22,{"$f":"'Algemene gegevens'!$B$5&\"-kolknr\"&B28","v":"xx,xxx-kolknr22"},"RWA","kolk",null,null," "," "," "," "," "," "," "," "," ",{"$f":"\"GEM=\"&'Algemene gegevens'!$F$7&\" projectnr=\"&'Algemene gegevens'!$B$5&\" adres=\"&'Project kolk'!A28&\" ko=\"&C28&\" AB-kolk-fiche\"","v":"GEM=LEU projectnr=xx,xxx adres=straat ko=xx,xxx-kolknr22 AB-kolk-fiche"}]
["straat",23,{"$f":"'Algemene gegevens'!$B$5&\"-kolknr\"&B29","v":"xx,xxx-kolknr23"},"RWA","kolk",null,null," "," "," "," "," "," "," "," "," ",{"$f":"\"GEM=\"&'Algemene gegevens'!$F$7&\" projectnr=\"&'Algemene gegevens'!$B$5&\" adres=\"&'Project kolk'!A29&\" ko=\"&C29&\" AB-kolk-fiche\"","v":"GEM=LEU projectnr=xx,xxx adres=straat ko=xx,xxx-kolknr23 AB-kolk-fiche"}]
["straat",24,{"$f":"'Algemene gegevens'!$B$5&\"-kolknr\"&B30","v":"xx,xxx-kolknr24"},"RWA","kolk",null,null," "," "," "," "," "," "," "," "," ",{"$f":"\"GEM=\"&'Algemene gegevens'!$F$7&\" projectnr=\"&'Algemene gegevens'!$B$5&\" adres=\"&'Project kolk'!A30&\" ko=\"&C30&\" AB-kolk-fiche\"","v":"GEM=LEU projectnr=xx,xxx adres=straat ko=xx,xxx-kolknr24 AB-kolk-fiche"}]
[]
[]
["TOTAAL hoeveelheden:","KOLK",null,null,null,null,null,{"$f":"SUM(H7:H32)","v":0},{"$f":"SUM(I7:I32)","v":0},0,0,0,0,0,0]

{"sheet":"huisaansluitingen","index":5,"n_rows":71,"n_cols":10,"rows_kept":71,"cut":false,"hidden":false,"merged":[[70,0,70,4],[70,5,70,9],[71,0,71,4],[71,5,71,9],[68,0,68,4],[68,5,68,9],[69,0,69,4],[69,5,69,9],[65,0,65,9],[66,0,66,4],[66,5,66,9],[67,0,67,4],[67,5,67,9],[62,0,62,4],[62,5,62,9],[63,0,63,9],[64,0,64,4],[64,5,64,9],[60,0,60,4],[60,5,60,9],[61,0,61,4],[61,5,61,9],[58,0,58,9],[59,0,59,4],[59,5,59,9],[15,8,15,9],[16,8,16,9],[17,8,17,9],[27,8,27,9],[29,8,29,9],[30,0,30,7],[31,0,31,7],[32,0,32,7],[27,6,27,7],[57,0,57,4],[57,5,57,9],[53,2,53,3],[54,2,54,3],[33,3,34,5],[27,0,27,2],[28,0,28,2],[29,0,29,2],[24,3,24,5],[25,3,25,5],[56,0,56,9],[33,0,34,2],[33,6,34,7],[29,6,29,7],[31,8,31,9],[32,8,32,9],[17,0,17,2],[11,0,11,5],[14,8,14,9],[15,6,15,7],[16,6,16,7],[17,6,17,7],[33,8,34,9],[26,3,26,5],[27,3,27,5],[28,3,28,5],[29,3,29,5],[14,3,14,5],[21,3,21,5],[22,3,22,5],[23,3,23,5],[18,6,18,7],[18,8,18,9],[26,0,26,2],[15,0,15,2],[16,0,16,2],[6,7,6,9],[0,0,0,9],[5,7,5,9],[4,7,4,9],[2,1,2,9],[3,1,3,9],[4,1,4,5],[5,1,5,5],[6,1,6,5],[1,0,1,9],[7,8,7,9],[10,0,10,5],[10,6,10,7],[12,0,12,5],[8,6,8,7],[7,6,7,7],[9,0,9,5],[14,6,14,7],[8,8,8,9],[10,8,10,9],[14,0,14,1],[22,0,22,2],[23,0,23,2],[24,0,24,2],[25,0,25,2],[15,3,15,5],[16,3,16,5],[17,3,17,5],[19,3,19,5],[20,3,20,5],[18,3,18,5],[19,0,19,2],[20,0,20,2],[21,0,21,2],[18,0,18,2]]}
["\"naam fiche\""]
["Huisaansluitingsfiche"]
["Projectnummer:",{"$f":"'Algemene gegevens'!B5","v":"xx,xxx"}]
["Projectnaam:",{"$f":"'Algemene gegevens'!B6","v":"BBBBBBB"}]
["Straat:",null,null,null,null,null,"Huisnr/Volgnr:"]
["Gemeente:",{"$f":"'Algemene gegevens'!B7","v":"leuven"},null,null,null,null,"Equipmentnr:"]
["Aannemer:",{"$f":"'Algemene gegevens'!B21","v":0},null,null,null,null,"Datum:"]
[null,null,null,null,null,null,"DWA/GEM",null,"RWA"]
["Gelegen tussen volgende toegangs- en verbindingsputten:"]
["Afstand midden stroomafwaartse put tot mof:",null,null,null,null,null,null,"m",null,"m"]
["Beschrijving liggen HA-putje:",null,null,null,null,null,"'keuzelijst'",null,"'keuzelijst'"]
["Diepte HA-putje/aansluiting tov MV:",null,null,null,null,null,null,"m",null,"m"]
["Diepte aanboring op hoofdriool tov MV (op best. riolering):",null,null,null,null,null,null,"m",null,"m"]
[]
["HOEVEELHEDEN",null,null,"opmerking",null,null,"DWA/GEM",null,"RWA"]
["Gebruik:",null,null,null,null,null,{"$f":"IF(ISERROR(VLOOKUP($H$6&\"DWA\",'Project WA'!C:U,4,FALSE)),\nIF(ISERROR(VLOOKUP($H$6&\"GEM\",'Project WA'!C:U,4,FALSE)),\"\",(VLOOKUP($H$6&\"GEM\",'Project WA'!C:U,4,FALSE))),\n(VLOOKUP($H$6&\"DWA\",'Project WA'!C:U,4,FALSE)))","v":""},null,{"$f":"IF(ISERROR(VLOOKUP($H$6&\"RWA\",'Project WA'!C:U,4,FALSE)),\"\",VLOOKUP($H$6&\"RWA\",'Project WA'!C:U,4,FALSE))","v":""}]
["Materiaal:",null,null,null,null,null,{"$f":"IF(ISERROR(VLOOKUP($H$6&\"DWA\",'Project WA'!C:U,6,FALSE)),\nIF(ISERROR(VLOOKUP($H$6&\"GEM\",'Project WA'!C:U,6,FALSE)),\"\",(VLOOKUP($H$6&\"GEM\",'Project WA'!C:U,6,FALSE))),\n(VLOOKUP($H$6&\"DWA\",'Project WA'!C:U,6,FALSE)))","v":""},null,{"$f":"IF(ISERROR(VLOOKUP($H$6&\"RWA\",'Project WA'!C:U,6,FALSE)),\"\",VLOOKUP($H$6&\"RWA\",'Project WA'!C:U,6,FALSE))","v":""}]
["Diameter buis (mm):",null,null,null,null,null,{"$f":"IF(ISERROR(VLOOKUP($H$6&\"DWA\",'Project WA'!C:U,5,FALSE)),\nIF(ISERROR(VLOOKUP($H$6&\"GEM\",'Project WA'!C:U,5,FALSE)),\"\",(VLOOKUP($H$6&\"GEM\",'Project WA'!C:U,5,FALSE))),\n(VLOOKUP($H$6&\"DWA\",'Project WA'!C:U,5,FALSE)))","v":""},null,{"$f":"IF(ISERROR(VLOOKUP($H$6&\"RWA\",'Project WA'!C:U,5,FALSE)),\"\",VLOOKUP($H$6&\"RWA\",'Project WA'!C:U,5,FALSE))","v":""}]
["Type aansluiting op hoofdriool:",null,null,null,null,null,"'keuzelijst'",null,"'keuzelijst'"]
["Mof ",null,null,null,null,null,null,"st",null,"st"]
["Buis ",null,null,null,null,null,null,"m",null,"m"]
["Bocht",null,null,null,null,null,null,"st",null,"st"]
["Y/T-stuk:",null,null,null,null,null,null,"st",null,"st"]
["Krimpmof:",null,null,null,null,null,null,"st",null,"st"]
["Koppelstuk:",null,null,null,null,null,null,"st",null,"st"]
["Reductie:",null,null,null,null,null,null,"st",null,"st"]
["Stop:",null,null,null,null,null,null,"st",null,"st"]
["Andere:"]
["ø HA-putje of T-stuk - 1 stuk:",null,null,null,null,null,null,"mm",null,"mm"]
["Terugslagklep in HA-putje",null,null,null,null,null," ' keuzelijst'",null," ' keuzelijst'"]
["Aansluitingen bovengrondse regenafvoer (RWA):",null,null,null,null,null,null,null,null,"st"]
["RWA - infiltratieputje:",null,null,null,null,null,null,null," ' keuzelijst'"]
["RWA aansluiting op opengracht:",null,null,null,null,null,null,null," ' keuzelijst'"]
["Plaats van de aansluiting op de riolering gezien van stroomafwaarts naar stroomopwaarts ( graden):",null,null,null,null,null,"'keuzelijst'",null,"'keuzelijst'"]
[]
["Situatieschets grondplan HA-putje tov perceel:"]
[]
[]
[]
[]
[]
[]
[]
[]
[]
[]
[]
[]
[]
[]
["indien bouwlijn = rooilijn; vertikale afstand = van gevel tot HA-putje"]
[]
["afstand DWAputje",null,null,null,null,null,"afstand RWAputje"]
["horizontaal:","letter",null,null,"m",null,"horizontaal:","letter",null,"m"]
["vertikaal:","letter",null,null,"m",null,"vertikaal:","letter",null,"m"]
[]
["\"naam fiche\""]
["Foto's: DWA/GEM",null,null,null,null,"Foto's: RWA"]
["Foto's volgens vlariobestek 250 versie 4.1"]
["1. boring of opening van aansluiting op hoofdriool",null,null,null,null,"1. boring of opening van aansluiting op hoofdriool"]
[]
["2. na plaatsing fundering, buizen, hulpstukken en HA-putje, vanaf de aansluitopening richting putje,indien niet alle hulpstukken te zien zijn, \neventueel ook foto vanuit omgekeerd standpunt",null,null,null,null,"2. na plaatsing fundering, buizen, hulpstukken en HA-putje, vanaf de aansluitopening richting putje,indien niet alle hulpstukken te zien zijn, \neventueel ook foto vanuit omgekeerd standpunt"]
[]
["\"naam fiche\""]
["Foto's: DWA/GEM",null,null,null,null,"Foto's: RWA"]
["Foto's volgens vlariobestek 250 versie 4.1"]
["2. vervolg foto 2",null,null,null,null,"2. vervolg foto 2"]
[]
["3. verbinding tss HAputje en bestaande privé-riool",null,null,null,null,"3. verbinding tss HAputje en bestaande privé-riool"]
[]
["4. zelfde als foto 2, maar met omhulling",null,null,null,null,"4. zelfde als foto 2, maar met omhulling"]

{"sheet":"kolkaansluitingen","index":6,"n_rows":44,"n_cols":13,"rows_kept":44,"cut":false,"hidden":false,"merged":[[39,0,39,7],[41,0,41,2],[40,0,40,7],[41,3,41,7],[44,3,44,7],[45,3,45,7],[43,0,43,7],[42,0,42,7],[44,0,44,2],[45,0,45,2],[34,0,34,7],[35,0,35,2],[35,3,35,7],[18,0,18,1],[18,2,18,3],[18,4,18,5],[18,6,18,7],[33,0,33,7],[37,0,37,7],[1,0,1,7],[38,0,38,7],[15,6,15,7],[28,0,28,3],[28,4,28,5],[29,0,29,3],[29,4,29,5],[16,2,16,3],[16,4,16,5],[17,0,17,1],[17,2,17,3],[17,4,17,5],[27,2,27,3],[27,4,27,5],[14,6,14,7],[11,6,11,7],[15,2,15,3],[15,4,15,5],[8,4,8,5],[9,0,9,3],[10,0,10,3],[11,0,11,3],[14,2,14,3],[14,4,14,5],[0,0,0,7],[3,1,3,7],[4,1,4,3],[4,5,4,7],[32,0,32,7],[22,6,22,7],[23,6,23,7],[24,6,24,7],[25,6,25,7],[26,6,26,7],[30,0,31,1],[30,2,31,3],[30,4,31,5],[27,6,27,7],[28,6,28,7],[29,6,29,7],[2,1,2,7],[30,6,31,7],[16,6,16,7],[17,6,17,7],[19,6,19,7],[20,6,20,7],[21,6,21,7],[5,1,5,3],[5,5,5,7],[6,1,6,3],[6,5,6,7],[7,4,7,5],[7,6,7,7],[8,6,8,7],[9,6,9,7],[10,6,10,7]]}
["\"naam fiche\""]
["Kolk-aansluitingsfiche"]
["Projectnummer:",{"$f":"'Algemene gegevens'!B5","v":"xx,xxx"}]
["Projectnaam:",{"$f":"'Algemene gegevens'!B6","v":"BBBBBBB"}]
["Straat:",null,null,null,"Volgnr.:"]
["Gemeente:",{"$f":"'Algemene gegevens'!B7","v":"leuven"},null,null,"Equipmentnr:"]
["Aannemer:",{"$f":"'Algemene gegevens'!B21","v":0},null,null,"Datum:"]
[null,null,null,null,"RWA",null,"opmerking"]
["Gelegen tussen volgende toegangs- en verbindingsputten:"]
["Afstand midden stroomafwaartse put tot mof:",null,null,null,null,"m"]
["Diepte aansluiting tov MV:",null,null,null,null,"m"]
["Diepte aanboring op hoofdriool tov MV (op best. riolering):",null,null,null,null,"m"]
[]
[]
["HOEVEELHEDEN",null,null,null,"RWA",null,"opmerking"]
["Gebruik:",null,null,null,{"$f":"IFERROR(VLOOKUP(F6,'Project kolk'!A:Q,3,FALSE),\" \")","v":" "}]
["Materiaal:",null,null,null,{"$f":"IFERROR(VLOOKUP(F7,'Project kolk'!A:Q,6,FALSE),\" \")","v":" "}]
["Diameter buis (mm):",null,null,null,{"$f":"IFERROR(VLOOKUP(F8,'Project kolk'!A:Q,6,FALSE),\" \")","v":" "},null,null,null,null,null,null,null," "]
["Type aansluiting op hoofdriool:",null,null,null,"'keuzelijst'",null,null,null,null,null,null,null," "]
["Mof ",null,null,null,null,"st"]
["Buis ",null,null,null,null,"m"]
["Bocht",null,null,null,null,"st"]
["Y/T-stuk:",null,null,null,null,"st"]
["Krimpmof:",null,null,null,null,"st"]
["Koppelstuk:",null,null,null,null,"st"]
["Reductie:",null,null,null,null,"st"]
["Stop:",null,null,null,null,"st"]
["Andere:"]
["RWA - infiltratieklok:",null,null,null," ' keuzelijst'"]
["KOLK aansluiting op opengracht:",null,null,null," ' keuzelijst'"]
["Plaats van de aansluiting op de riolering gezien van stroomafwaarts naar stroomopwaarts ( graden):",null,null,null,"'keuzelijst'"]
[]
["Foto's: kolk"]
["Foto's volgens vlariobestek 250 versie 4.1"]
["1. boring of opening van aansluiting op hoofdriool"]
[]
[]
["\"naam fiche\""]
["Foto's: kolk"]
["Foto's volgens vlariobestek 250 versie 4.1"]
["2. na plaatsing fundering, buizen, hulpstukken en HA-putje, vanaf de aansluitopening richting putje,indien niet alle hulpstukken te zien zijn, eventueel ook foto vanuit omgekeerd standpunt"]
[]
["3. verbinding tss HAputje en bestaande privé-riool"]
["4. zelfde als foto 2, maar met omhulling"]

{"sheet":"keuzelijsten","index":7,"n_rows":302,"n_cols":25,"rows_kept":302,"cut":false,"hidden":false,"merged":[]}
["gegevens lijst VMM dd. 2020"]
["Gemeente","Stad/gemeente","Provincie","watermaatschappij","rioolbeheerder","gemeentecode",null,"ontvangen gegevens "]
["Aalst","stad","Oost-Vlaanderen","Farys (TMVW)","Gemeente","Aalst",null,"GEMNAAM","gemeentecode",null,null,null,null,"Beschrijving liggen HA-putje:",null,"Plaats van de aansluiting op de riolering gezien van stroomafwaarts naar stroomopwaarts ( graden):",null,"Type aansluiting op hoofdriool:",null,"ja/nee optie",null,"afstand DWAputje horizontaal","afstand DWAputje vertikaal","afstand RWAputje vertikaal","afstand RWAputje horizontaal"]
["Aalter","gem.","Oost-Vlaanderen","Farys (TMVW)","Gemeente (9880- 9881) AquaRio (9910)","Aalter",null,"AARTSELAAR","AA"]
["Aarschot","stad","Vlaams-Brabant","De Watergroep (VMW)","Riopact-vennoot","ARS",null,"ARENDONK","AR"]
["Aartselaar","gem.","Antwerpen","Pidpa","HidroRio","AA",null,"BALEN","BA",null,null,null,null,"oprit",null,"90°",null,"T-buis",null,"ja",null,"a","g","m","u"]
["Affligem","gem.","Vlaams-Brabant","Farys (TMVW)","AquaRio","Affligem",null,"BORSBEEK","BB",null,null,null,null,"voortuin",null,"135°",null,"T-stuk",null,"nee",null,"b","h","n","v"]
["Alken","gem.","Limburg","De Watergroep (VMW)","Inter-aqua","AL",null,"BERLAAR","BE",null,null,null,null,"berm",null,"180°",null,"Y-stuk",null,null,null,"c",null,null,"w"]
["Alveringem","gem.","West-Vlaanderen","IWVA","IWVA","Alveringem",null,"BONHEIDEN","BH",null,null,null,null,"voetpad",null,"225°",null,"felxibele aansluiting",null,null,null,"d",null,null,"x"]
["Antwerpen","stad","Antwerpen","Water-link (AWW)","Rio-link","Antwerpen",null,"BORNEM","BM",null,null,null,null,"fietspad",null,"270°",null,"aanboring",null,null,null,"e",null,null,"y"]
["Anzegem","gem.","West-Vlaanderen","De Watergroep (VMW)","Riopact-vennoot","ANZ",null,"BAARLE-HERTOG","BN",null,null,null,null,"MANUEEL INVULLEN",null,"NVT",null,null,null,null,null,"f",null,null,"z"]
["Ardooie","gem.","West-Vlaanderen","De Watergroep (VMW)","Gemeente","ARD",null,"BOOM","BO"]
["Arendonk","gem.","Antwerpen","Pidpa","Gemeente","Arendonk",null,"BRASSCHAAT","BR"]
["As","gem.","Limburg","De Watergroep (VMW)","Gemeente","AS",null,"BEERSE","BS"]
["Asse","gem.","Vlaams-Brabant","Farys (TMVW)","AquaRio","Asse",null,"BRECHT","BT"]
["Assenede","gem.","Oost-Vlaanderen","De Watergroep (VMW)","Gemeente","ASN",null,"Boechout-Vremde","BV"]
["Avelgem","gem.","West-Vlaanderen","De Watergroep (VMW)","Gemeente","Avelgem",null,"DUFFEL","DF"]
["Baarle-Hertog","gem.","Antwerpen","Pidpa + Brabant-Water","Gemeente","Baarle-Hertog",null,"DESSEL","DS"]
["Balen","gem.","Antwerpen","Pidpa","HidroRio","BA",null,"ESSEN","ES"]
["Beernem","gem.","West-Vlaanderen","Farys (TMVW)","Gemeente","Beernem",null,"GROBBENDONK","GB"]
["Beerse","gem.","Antwerpen","Pidpa","Infrax West","BS",null,"GEEL","GE"]
["Beersel","gem.","Vlaams-Brabant","Farys (TMVW)","AquaRio","Beersel",null,"HEIST-OP-DEN-BERG","HB"]
["Begijnendijk","gem.","Vlaams-Brabant","De Watergroep (VMW)","Riobra","BD",null,"HERENTHOUT","HH"]
["Bekkevoort","gem.","Vlaams-Brabant","De Watergroep (VMW)","Riobra","BK",null,"HEMIKSEM","HM"]
["Beringen","stad","Limburg","De Watergroep (VMW)","Inter-aqua","BE",null,"HOOGSTRATEN","HO"]
["Berlaar","gem.","Antwerpen","Pidpa","HidroRio","BE",null,"HERENTALS","HR"]
["Berlare","gem.","Oost-Vlaanderen","De Watergroep (VMW)","Gemeente","BER",null,"HERSELT","HS"]
["Bertem","gem.","Vlaams-Brabant","De Watergroep (VMW)","Riobra","BL",null,"HULSHOUT","HU"]
["Bever","gem.","Vlaams-Brabant","De Watergroep (VMW)","Riobra","BB",null,"KALMTHOUT","KH"]
["Beveren","gem.","Oost-Vlaanderen","De Watergroep (VMW) + Water-link (AWW)","Gemeente","BEV",null,"KASTERLEE","KL"]
["Bierbeek","gem.","Vlaams-Brabant","De Watergroep (VMW)","Gemeente","BIE",null,"KAPELLEN","KP"]
["Bilzen","stad","Limburg","De Watergroep (VMW)","Gemeente","BIL",null,"Kontich-Waarloos","KT"]
["Blankenberge","stad","West-Vlaanderen","Farys (TMVW)","AquaRio","Blankenberge",null,"LAAKDAL","LA"]
["Bocholt","gem.","Limburg","De Watergroep (VMW)","Inter-aqua","BT",null,"LILLE","LL"]
["Boechout","gem.","Antwerpen","Pidpa","Rio-link","Boechout",null,"LIER","LR"]
["Bonheiden","gem.","Antwerpen","Pidpa","HidroRio","BH",null,"LINT","LT"]
["Boom","gem.","Antwerpen","Pidpa","Gemeente","BO",null,"MALLE","MA"]
["Boortmeerbeek","gem.","Vlaams-Brabant","De Watergroep (VMW)","Riobra","BM",null,"MECHELEN","ME"]
["Borgloon","stad","Limburg","De Watergroep (VMW)","Inter-aqua","BO",null,"MEERHOUT","MH"]
["Bornem","gem.","Antwerpen","Pidpa","Gemeente","Bornem",null,"MOL","MO"]
["Borsbeek","gem.","Antwerpen","Pidpa","HidroRio","BB",null,"MERKSPLAS","MP"]
["Boutersem","gem.","Vlaams-Brabant","De Watergroep (VMW)","Riobra","BV",null,"NIJLEN","NI"]
["Brakel","gem.","Oost-Vlaanderen","Farys (TMVW)","AquaRio","Brakel",null,"NIEL","NL"]
["Brasschaat","gem.","Antwerpen","Pidpa","HidroGem","BR",null,"OLEN","OO"]
["Brecht","gem.","Antwerpen","Pidpa","HidroRio","BT",null,"OUD-TURNHOUT","OT"]
["Bredene","gem.","West-Vlaanderen","De Watergroep (VMW)","Gemeente","BRE",null,"PUURS- SINt-AMANDS","PU"]
["Bree","stad","Limburg","De Watergroep (VMW)","Inter-aqua","BR",null,"PUTTE","PT"]
["Brugge","stad","West-Vlaanderen","Farys (TMVW)","AquaRio","Brugge",null,"RANST","RA"]
["Buggenhout","gem.","Oost-Vlaanderen","Farys (TMVW)","AquaRio","Buggenhout",null,"RETIE","RI"]
["Damme","stad","West-Vlaanderen","Farys (TMVW)","AquaRio","Damme",null,"RIJKEVORSEL","RK"]
["De Haan","gem.","West-Vlaanderen","Farys (TMVW)","AquaRio","De Haan",null,"RUMST","RU"]
["De Panne","gem.","West-Vlaanderen","IWVA","IWVA","De Panne",null,"RAVELS","RV"]
["De Pinte","gem.","Oost-Vlaanderen","Farys (TMVW)","AquaRio","De Pinte",null,"SCHILDE","SI"]
["Deerlijk","gem.","West-Vlaanderen","De Watergroep (VMW)","Gemeente","Deerlijk",null,"SCHELLE","SL"]
["Deinze","stad","Oost-Vlaanderen","Farys (TMVW)","AquaRio","Deinze",null,"SCHOTEN","SO"]
["Denderleeuw","gem.","Oost-Vlaanderen","De Watergroep (VMW)","Gemeente","DEN",null,"STABROEK","ST"]
["Dendermonde","stad","Oost-Vlaanderen","Farys (TMVW)","Gemeente","Dendermonde",null,"SINT-KATELIJNE-WAVER","SW"]
["Dentergem","gem.","West-Vlaanderen","De Watergroep (VMW)","Gemeente","Dentergem",null,"TURNHOUT","TU"]
["Dessel","gem.","Antwerpen","Pidpa","HidroSan","DS",null,"VORSELAAR","VR"]
["Destelbergen","gem.","Oost-Vlaanderen","Farys (TMVW)","AquaRio","Destelbergen",null,"VOSSELAAR","VS"]
["Diepenbeek","gem.","Limburg","De Watergroep (VMW)","Inter-aqua","DP",null,"WOMMELGEM","WG"]
["Diest","stad","Vlaams-Brabant","De Watergroep (VMW)","Gemeente","Diest",null,"WILLEBROEK","WL"]
["Diksmuide","stad","West-Vlaanderen","De Watergroep (VMW) + IWVA","Infrax West","Diksmuide",null,"WESTERLO","WO"]
["Dilbeek","gem.","Vlaams-Brabant","De Watergroep (VMW)","AquaRio","Dilbeek",null,"WUUSTWEZEL","WU"]
["Dilsen-Stokkem","stad","Limburg","De Watergroep (VMW)","Inter-aqua","DI",null,"WIJNEGEM","WY"]
["Drogenbos","gem.","Vlaams-Brabant","Farys (TMVW)","AquaRio","Drogenbos",null,"ZANDHOVEN","ZH"]
["Duffel","gem.","Antwerpen","Pidpa","Gemeente","DF",null,"ZOERSEL","ZS"]
["Edegem","gem.","Antwerpen","Water-link (AWW)","Rio-link","Edegem",null,"Alken","AL"]
["Eeklo","stad","Oost-Vlaanderen","De Watergroep (VMW)","Riopact-vennoot","EEK",null,"Beerse","BS"]
["Erpe-Mere","gem.","Oost-Vlaanderen","Farys (TMVW)","AquaRio","Erpe-Mere",null,"Begijnendijk","BD"]
["Essen","gem.","Antwerpen","Pidpa","IVEG","ES",null,"Bekkevoort","BK"]
["Evergem","gem.","Oost-Vlaanderen","De Watergroep (VMW)","Gemeente","EVE",null,"Beringen","BE"]
["Galmaarden","gem.","Vlaams-Brabant","De Watergroep (VMW)","Riobra","GA",null,"Bertem","BL"]
["Gavere","gem.","Oost-Vlaanderen","Farys (TMVW)","AquaRio","Gavere",null,"Bever","BB"]
["Geel","stad","Antwerpen","Pidpa","Gemeente","Geel",null,"Bocholt","BT"]
["Geetbets","gem.","Vlaams-Brabant","De Watergroep (VMW)","Riobra","GE",null,"Boortmeerbeek","BM"]
["Genk","stad","Limburg","De Watergroep (VMW)","Inter-aqua","GK",null,"Borgloon","BO"]
["Gent","stad","Oost-Vlaanderen","Farys (TMVW)","AquaRio","Gent",null,"Boutersem","BV"]
["Geraardsbergen","stad","Oost-Vlaanderen","De Watergroep (VMW)","Gemeente","GER",null,"Bree","BR"]
["Gingelom","gem.","Limburg","De Watergroep (VMW)","Inter-aqua","GI",null,"Diepenbeek","DP"]
["Gistel","stad","West-Vlaanderen","De Watergroep (VMW)","Infrax West","GS",null,"Diksmuiden","DK"]
["Glabbeek","gem.","Vlaams-Brabant","De Watergroep (VMW)","Riobra","GL",null,"Dilsen-Stokkem","DI"]
["Gooik","gem.","Vlaams-Brabant","De Watergroep (VMW)","Riobra","GO",null,"Essen","ES"]
["Grimbergen","gem.","Vlaams-Brabant","De Watergroep (VMW)","Gemeente","GRI",null,"Galmaarden","GA"]
["Grobbendonk","gem.","Antwerpen","Pidpa","IVEG","GB",null,"Geetbets","GE"]
["Haacht","gem.","Vlaams-Brabant","De Watergroep (VMW)","Gemeente","Haacht",null,"Genk","GK"]
["Haaltert","gem.","Oost-Vlaanderen","De Watergroep (VMW)","Gemeente","HAA",null,"Gingelom","GI"]
["Halen","stad","Limburg","De Watergroep (VMW)","Inter-aqua","HL",null,"Gistel","GS"]
["Halle","stad","Vlaams-Brabant","De Watergroep (VMW)","AquaRio","Halle",null,"Glabbeek","GL"]
["Ham","gem.","Limburg","De Watergroep (VMW)","Inter-aqua","HM",null,"Gooik","GO"]
["Hamme","gem.","Oost-Vlaanderen","Farys (TMVW)","Gemeente","Hamme",null,"Grobbendonk","GR"]
["Hamont-Achel","stad","Limburg","De Watergroep (VMW)","Gemeente","HAM",null,"Halen","HL"]
["Harelbeke","stad","West-Vlaanderen","De Watergroep (VMW)","Infrax West","HK",null,"Ham","HM"]
["Hasselt","stad","Limburg","De Watergroep (VMW)","Inter-aqua","HT",null,"Harelbeke","HK"]
["Hechtel-Eksel","gem.","Limburg","De Watergroep (VMW)","Inter-aqua","HE",null,"Hasselt","HT"]
["Heers","gem.","Limburg","De Watergroep (VMW)","Inter-aqua","HS",null,"Hechtel-Eksel","HE"]
["Heist-op-den-Berg","gem.","Antwerpen","Pidpa","HidroRio","HB",null,"Heers","HS"]
["Hemiksem","gem.","Antwerpen","Pidpa","Rio-link","HM",null,"Herk-De-Stad","HD"]
["Herent","gem.","Vlaams-Brabant","De Watergroep (VMW)","Gemeente","Herent",null,"Herne","HR"]
["Herentals","stad","Antwerpen","Pidpa","Gemeente","Herentals",null,"Herstappe","HP"]
["Herenthout","gem.","Antwerpen","Pidpa","HidroRio","HH",null,"Hoegaarden","HW"]
["Herk-de-Stad","stad","Limburg","De Watergroep (VMW)","Inter-aqua","HD",null,"Hoeselt","HO"]
["Herne","gem.","Vlaams-Brabant","De Watergroep (VMW)","Riobra","HR",null,"Hooglede","HG"]
["Herselt","gem.","Antwerpen","Pidpa","HidroRio","HS",null,"Houthalen-Helchteren","HH"]
["Herstappe","gem.","Limburg","De Watergroep (VMW)","Inter-aqua","HP",null,"Houthulst","HU"]
["Herzele","gem.","Oost-Vlaanderen","De Watergroep (VMW) + Farys (TMVW)","Riopact-vennoot","HRZ",null,"Huldenberg","UL"]
["Heusden-Zolder","gem.","Limburg","De Watergroep (VMW)","Gemeente","HZO",null,"Ichtegem","IG"]
["Heuvelland","gem.","West-Vlaanderen","De Watergroep (VMW)","Gemeente","HEU",null,"Ingelmunster","IM"]
["Hoegaarden","gem.","Vlaams-Brabant","De Watergroep (VMW)","Riobra","HW",null,"Izegem","IZ"]
["Hoeilaart","gem.","Vlaams-Brabant","De Watergroep (VMW)","Gemeente","Hoeilaart",null,"Kinrooi","KI"]
["Hoeselt","gem.","Limburg","De Watergroep (VMW)","Inter-aqua","HO",null,"Koekelare","KK"]
["Holsbeek","gem.","Vlaams-Brabant","De Watergroep (VMW)","Gemeente","Holsbeek",null,"Kortemark","KM"]
["Hooglede","gem.","West-Vlaanderen","De Watergroep (VMW)","Infrax West","HG",null,"Kortenaken","KT"]
["Hoogstraten","stad","Antwerpen","Pidpa","HidroSan","HO",null,"Kortessem","KO"]
["Horebeke","gem.","Oost-Vlaanderen","Farys (TMVW)","AquaRio","Horebeke",null,"Lanaken","LA"]
["Houthalen-Helchteren","gem.","Limburg","De Watergroep (VMW)","Inter-aqua","HH",null,"Landen","LN"]
["Houthulst","gem.","West-Vlaanderen","De Watergroep (VMW)","Infrax West","HU",null,"Langemark-Poelkapelle","LP"]
["Hove","gem.","Antwerpen","Water-link (AWW)","Rio-link","Hove",null,"Lendelede","LL"]
["Huldenberg","gem.","Vlaams-Brabant","De Watergroep (VMW)","Riobra","UL",null,"Leopoldsburg","LE"]
["Hulshout","gem.","Antwerpen","Pidpa","HidroRio","HU",null,"Lichtervelde","LV"]
["Ichtegem","gem.","West-Vlaanderen","De Watergroep (VMW)","Infrax West","IG",null,"Lille","IL"]
["Ieper","stad","West-Vlaanderen","De Watergroep (VMW)","Gemeente","Ieper",null,"Linter","LI"]
["Ingelmunster","gem.","West-Vlaanderen","De Watergroep (VMW)","Infrax West","IM",null,"Lubbeek","LB"]
["Izegem","stad","West-Vlaanderen","De Watergroep (VMW)","Infrax West","IZ",null,"Lummen","LU"]
["Jabbeke","gem.","West-Vlaanderen","De Watergroep (VMW) + Farys (TMVW)","Gemeente","Jabbeke",null,"Maaseik","MA"]
["Kalmthout","gem.","Antwerpen","Pidpa","Rio-link","KH",null,"Maasmechelen","MM"]
["Kampenhout","gem.","Vlaams-Brabant","De Watergroep (VMW)","Gemeente","Kampenhout",null,"Merchtem","MT"]
["Kapellen","gem.","Antwerpen","Pidpa","Rio-link","KP",null,"Moorslede","MO"]
["Kapelle-op-den-Bos","gem.","Vlaams-Brabant","De Watergroep (VMW)","Gemeente","KAP",null,"Nieuwerkerken","NI"]
["Kaprijke","gem.","Oost-Vlaanderen","De Watergroep (VMW)","Riopact-vennoot","KPR",null,"Oudenburg","OU"]
["Kasterlee","gem.","Antwerpen","Pidpa","Gemeente","Kasterlee",null,"Oud-Heverlee","OH"]
["Keerbergen","gem.","Vlaams-Brabant","De Watergroep (VMW)","Gemeente","KEE",null,"Oudsbergen","OB"]
["Kinrooi","gem.","Limburg","De Watergroep (VMW)","Inter-aqua","KI",null,"Peer","PE"]
["Kluisbergen","gem.","Oost-Vlaanderen","Farys (TMVW)","AquaRio","Kluisbergen",null,"Pelt","PT"]
["Knokke-Heist","gem.","West-Vlaanderen","AGSO Knokke-Heist","AGSO Knokke-Heist","Knokke-Heist",null,"Pepingen","PP"]
["Koekelare","gem.","West-Vlaanderen","De Watergroep (VMW)","Infrax West","KK",null,"Riemst","RI"]
["Koksijde","gem.","West-Vlaanderen","IWVA","Gemeente","Koksijde",null,"Rotselaar","RO"]
["Kontich","gem.","Antwerpen","Pidpa","Rio-link","Kontich",null,"Sint-Pieters-Leeuw","PL"]
["Kortemark","gem.","West-Vlaanderen","De Watergroep (VMW)","Infrax West","KM",null,"Sint-Truiden","ST"]
["Kortenaken","gem.","Vlaams-Brabant","De Watergroep (VMW)","Riobra","KT",null,"Staden","SD"]
["Kortenberg","gem.","Vlaams-Brabant","De Watergroep (VMW)","Gemeente","Kortenberg",null,"Steenokkerzeel","SO"]
["Kortessem","gem.","Limburg","De Watergroep (VMW)","Inter-aqua","KO",null,"Tielt-Winge","TW"]
["Kortrijk","stad","West-Vlaanderen","De Watergroep (VMW)","Gemeente","KOR",null,"Tienen","TI"]
["Kraainem","gem.","Vlaams-Brabant","De Watergroep (VMW)","Riopact-vennoot","KRN",null,"Tongeren","TO"]
["Kruibeke","gem.","Oost-Vlaanderen","De Watergroep (VMW)","Riopact-vennoot","KRU",null,"Torhout","TH"]
["Kruisem","gem.","Oost-Vlaanderen","Farys (TMVW)","AquaRio","Kruisem",null,"Voeren","VR"]
["Kuurne","gem.","West-Vlaanderen","De Watergroep (VMW)","Gemeente","KUU",null,"Vosselaar","VS"]
["Laakdal","gem.","Antwerpen","Pidpa","HidroRio","LA",null,"Zonhoven","ZO"]
["Laarne","gem.","Oost-Vlaanderen","De Watergroep (VMW)","Riopact-vennoot","LRN",null,"Zoutleeuw","ZL"]
["Lanaken","gem.","Limburg","De Watergroep (VMW)","Inter-aqua","LA",null,"Zutendaal","ZU"]
["Landen","stad","Vlaams-Brabant","De Watergroep (VMW)","Riobra","LN",null,"Aarschot","ARS"]
["Langemark-Poelkapelle","gem.","West-Vlaanderen","De Watergroep (VMW)","Infrax West","LP",null,"Anzegem","ANZ"]
["Lebbeke","gem.","Oost-Vlaanderen","Farys (TMVW)","AquaRio","Lebbeke",null,"Deerlijk","DEE"]
["Lede","gem.","Oost-Vlaanderen","Farys (TMVW)","AquaRio","Lede",null,"Eeklo","EEK"]
["Ledegem","gem.","West-Vlaanderen","De Watergroep (VMW)","Gemeente","Ledegem",null,"Herzele","HRZ"]
["Lendelede","gem.","West-Vlaanderen","De Watergroep (VMW)","Infrax West","LL",null,"Kaprijke","KPR"]
["Lennik","gem.","Vlaams-Brabant","De Watergroep (VMW)","Gemeente","LEN",null,"Kraainem","KRN"]
["Leopoldsburg","gem.","Limburg","De Watergroep (VMW)","Inter-aqua","LE",null,"Kruibeke","KRU"]
["Leuven","stad","Vlaams-Brabant","De Watergroep (VMW)","Gemeente","LEU",null,"Laarne","LRN"]
["Lichtervelde","gem.","West-Vlaanderen","De Watergroep (VMW)","Infrax West","LV",null,"Moerbeke-Waas","MOE"]
["Liedekerke","gem.","Vlaams-Brabant","De Watergroep (VMW) + Farys (TMVW)","AquaRio","Liedekerke",null,"Ninove","NIV"]
["Lier","stad","Antwerpen","Pidpa","Gemeente","Lier",null,"Opwijk","OPW"]
["Lierde","gem.","Oost-Vlaanderen","De Watergroep (VMW) + Farys (TMVW)","AquaRio","Lierde",null,"Scherpenheuvel - Zichem","SCR"]
["Lievegem","gem.","Oost-Vlaanderen","De Watergroep (VMW)","Aquario (9920-9921) Gemeente (9950)","LIE",null,"Sint-Gillis-Waas","SGW"]
["Lille","gem.","Antwerpen","Pidpa","IVEG","IL",null,"Temse","TEM"]
["Linkebeek","gem.","Vlaams-Brabant","Farys (TMVW)","AquaRio","Linkebeek",null,"Tielt","TLT"]
["Lint","gem.","Antwerpen","Pidpa","HidroSan","LT",null,"Vleteren","VLE"]
["Linter","gem.","Vlaams-Brabant","De Watergroep (VMW)","Riobra","LI",null,"Waasmunster","WMS"]
["Lochristi","gem.","Oost-Vlaanderen","De Watergroep (VMW) + Farys (TMVW)","Gemeente","LOC",null,"Wachtebeke","WCB"]
["Lokeren","stad","Oost-Vlaanderen","De Watergroep (VMW)","Gemeente","Lokeren",null,"Wezembeek-Oppem","WZO"]
["Lommel","stad","Limburg","De Watergroep (VMW)","Gemeente","Lommel",null,"Zedelgem","ZED"]
["Londerzeel","gem.","Vlaams-Brabant","De Watergroep (VMW)","Gemeente","Londerzeel",null,"Ardooie","ARD"]
["Lo-Reninge","stad","West-Vlaanderen","De Watergroep (VMW) + IWVA","Gemeente","LOR",null,"As","AS"]
["Lubbeek","gem.","Vlaams-Brabant","De Watergroep (VMW)","Riobra","LB",null,"Assenede","ASN"]
["Lummen","gem.","Limburg","De Watergroep (VMW)","Inter-aqua","LU",null,"Berlare","BER"]
["Maarkedal","gem.","Oost-Vlaanderen","Farys (TMVW)","AquaRio","Maarkedal",null,"Beveren","BEV"]
["Maaseik","stad","Limburg","De Watergroep (VMW)","Inter-aqua","MA",null,"Bierbeek","BIE"]
["Maasmechelen","gem.","Limburg","De Watergroep (VMW)","Inter-aqua","MM",null,"Bilzen","BIL"]
["Machelen","gem.","Vlaams-Brabant","Farys (TMVW)","AquaRio","Machelen",null,"Bredene","BRE"]
["Maldegem","gem.","Oost-Vlaanderen","De Watergroep (VMW)","Gemeente","MAL",null,"Denderleeuw","DEN"]
["Malle","gem.","Antwerpen","Pidpa","HidroRio","MA",null,"Evergem ","EVE"]
["Mechelen","stad","Antwerpen","Pidpa","Gemeente","Mechelen",null,"Geraardsbergen","GER"]
["Meerhout","gem.","Antwerpen","Pidpa","HidroRio","MH",null,"Grimbergen","GRI"]
["Meise","gem.","Vlaams-Brabant","De Watergroep (VMW)","Gemeente","Meise",null,"Haaltert","HAA"]
["Melle","gem.","Oost-Vlaanderen","Farys (TMVW)","AquaRio","Melle",null,"Hamont-Achel","HAM"]
["Menen","stad","West-Vlaanderen","De Watergroep (VMW)","Gemeente","MEN",null,"Heusden-Zolder","HZO"]
["Merchtem","gem.","Vlaams-Brabant","De Watergroep (VMW)","Riobra","MT",null,"Heuvelland","HEU"]
["Merelbeke","gem.","Oost-Vlaanderen","Farys (TMVW)","Gemeente","Merelbeke",null,"Kappele-op-den-Bos","KAP"]
["Merksplas","gem.","Antwerpen","Pidpa","Gemeente","Merksplas",null,"Keerbergen","KEE"]
["Mesen","stad","West-Vlaanderen","De Watergroep (VMW)","Gemeente","Mesen",null,"Kortrijk","KOR"]
["Meulebeke","gem.","West-Vlaanderen","De Watergroep (VMW)","Gemeente","MEU",null,"Kuurne","KUU"]
["Middelkerke","gem.","West-Vlaanderen","De Watergroep (VMW) + Farys (TMVW)","AquaRio","Middelkerke",null,"Lennik","LEN"]
["Moerbeke","gem.","Oost-Vlaanderen","De Watergroep (VMW)","Riopact-vennoot","Moerbeke",null,"Leuven","LEU"]
["Mol","gem.","Antwerpen","Pidpa","HidroSan","MO",null,"Lievegem","LIE"]
["Moorslede","gem.","West-Vlaanderen","De Watergroep (VMW)","Infrax West","MO",null,"Lochristi","LOC"]
["Mortsel","stad","Antwerpen","Water-link (AWW)","Rio-link","Mortsel",null,"Lokeren","LOK"]
["Nazareth","gem.","Oost-Vlaanderen","Farys (TMVW)","AquaRio","Nazareth",null,"Lo-Reninge","LOR"]
["Niel","gem.","Antwerpen","Pidpa","HidroRio","NL",null,"Maldegem","MAL"]
["Nieuwerkerken","gem.","Limburg","De Watergroep (VMW)","Inter-aqua","NI",null,"Menen","MEN"]
["Nieuwpoort","stad","West-Vlaanderen","IWVA","IWVA","Nieuwpoort",null,"Mesen","MES"]
["Nijlen","gem.","Antwerpen","Pidpa","Gemeente","Nijlen",null,"Meulebeke","MEU"]
["Ninove","stad","Oost-Vlaanderen","De Watergroep (VMW)","Riopact-vennoot","NIV",null,"Oostrozebeke","OOS"]
["Olen","gem.","Antwerpen","Pidpa","Gemeente","Olen",null,"Roeselare","ROE"]
["Oostende","stad","West-Vlaanderen","De Watergroep (VMW) + Farys (TMVW)","AquaRio","Oostende",null,"Roosdaal","ROO"]
["Oosterzele","gem.","Oost-Vlaanderen","Farys (TMVW)","AquaRio","Oosterzele",null,"Sint-Laureins","SLA"]
["Oostkamp","gem.","West-Vlaanderen","De Watergroep (VMW) + Farys (TMVW)","Gemeente","Oostkamp",null,"Sint-Niklaas ","SNI"]
["Oostrozebeke","gem.","West-Vlaanderen","De Watergroep (VMW)","Gemeente","OOS",null,"Spiere-Helkijn","SPI"]
["Opwijk","gem.","Vlaams-Brabant","De Watergroep (VMW)","Riopact-vennoot","OPW",null,"Stekene","STE"]
["Oudenaarde","stad","Oost-Vlaanderen","Farys (TMVW)","Gemeente","Oudenaarde",null,"Tessenderlo","TES"]
["Oudenburg","stad","West-Vlaanderen","De Watergroep (VMW)","Infrax West","OU",null,"Waregem","WAR"]
["Oud-Heverlee","gem.","Vlaams-Brabant","De Watergroep (VMW)","Riobra","OH",null,"Wellen","WEL"]
["Oudsbergen","gem.","Limburg","De Watergroep (VMW)","Inter-aqua","OB",null,"Wervik","WER"]
["Oud-Turnhout","gem.","Antwerpen","Pidpa","Gemeente","Oud-Turnhout",null,"Wielsbeke","WIE"]
["Overijse","gem.","Vlaams-Brabant","De Watergroep (VMW)","Gemeente","Overijse",null,"Wingene","WIN"]
["Peer","stad","Limburg","De Watergroep (VMW)","Inter-aqua","PE",null,"Zele","ZEL"]
["Pelt","gem.","Limburg","De Watergroep (VMW)","Inter-aqua","PT",null,"Zemst","ZEM"]
["Pepingen","gem.","Vlaams-Brabant","De Watergroep (VMW)","Riobra","PP",null,"Zonnebeke","ZON"]
["Pittem","gem.","West-Vlaanderen","De Watergroep (VMW)","Gemeente","Pittem",null,"Zwevegem","ZWE"]
["Poperinge","stad","West-Vlaanderen","De Watergroep (VMW)","Gemeente","Poperinge"]
["Putte","gem.","Antwerpen","Pidpa","HidroRio","PT"]
["Puurs-Sint-Amands","gem.","Antwerpen","Pidpa","HidroRio","Puurs-Sint-Amands"]
["Ranst","gem.","Antwerpen","Pidpa","Rio-link","RA"]
["Ravels","gem.","Antwerpen","Pidpa","HidroSan","RV"]
["Retie","gem.","Antwerpen","Pidpa","Gemeente","RI"]
["Riemst","gem.","Limburg","De Watergroep (VMW)","Inter-aqua","RI"]
["Rijkevorsel","gem.","Antwerpen","Pidpa","HidroRio","RK"]
["Roeselare","stad","West-Vlaanderen","De Watergroep (VMW)","Gemeente","ROE"]
["Ronse","stad","Oost-Vlaanderen","Farys (TMVW)","AquaRio","Ronse"]
["Roosdaal","gem.","Vlaams-Brabant","De Watergroep (VMW)","Gemeente","ROO"]
["Rotselaar","gem.","Vlaams-Brabant","De Watergroep (VMW)","Riobra","RO"]
["Ruiselede","gem.","West-Vlaanderen","Farys (TMVW)","AquaRio","Ruiselede"]
["Rumst","gem.","Antwerpen","Pidpa","HidroRio","RU"]
["Schelle","gem.","Antwerpen","Pidpa","HidroRio","SL"]
["Scherpenheuvel-Zichem","stad","Vlaams-Brabant","De Watergroep (VMW)","Gemeente","Scherpenheuvel-Zichem"]
["Schilde","gem.","Antwerpen","Pidpa","HidroSan","SI"]
["Schoten","gem.","Antwerpen","Pidpa","Rio-link","SO"]
["Sint-Genesius-Rode","gem.","Vlaams-Brabant","De Watergroep (VMW)","Gemeente","Sint-Genesius-Rode"]
["Sint-Gillis-Waas","gem.","Oost-Vlaanderen","De Watergroep (VMW)","Gemeente","Sint-Gillis-Waas"]
["Sint-Katelijne-Waver","gem.","Antwerpen","Pidpa","HidroRio","SW"]
["Sint-Laureins","gem.","Oost-Vlaanderen","De Watergroep (VMW)","Gemeente","SLA"]
["Sint-Lievens-Houtem","gem.","Oost-Vlaanderen","Farys (TMVW)","AquaRio","Sint-Lievens-Houtem"]
["Sint-Martens-Latem","gem.","Oost-Vlaanderen","Farys (TMVW)","AquaRio","Sint-Martens-Latem"]
["Sint-Niklaas","stad","Oost-Vlaanderen","De Watergroep (VMW)","Gemeente","SNI"]
["Sint-Pieters-Leeuw","gem.","Vlaams-Brabant","De Watergroep (VMW)","Riobra","PL"]
["Sint-Truiden","stad","Limburg","De Watergroep (VMW)","Inter-aqua","ST"]
["Spiere-Helkijn","gem.","West-Vlaanderen","De Watergroep (VMW)","Gemeente","SPI"]
["Stabroek","gem.","Antwerpen","Pidpa","Gemeente","Stabroek"]
["Staden","gem.","West-Vlaanderen","De Watergroep (VMW)","Infrax West","SD"]
["Steenokkerzeel","gem.","Vlaams-Brabant","De Watergroep (VMW)","Riobra","SO"]
["Stekene","gem.","Oost-Vlaanderen","De Watergroep (VMW)","Gemeente","STE"]
["Temse","gem.","Oost-Vlaanderen","De Watergroep (VMW)","Riopact-vennoot","TEM"]
["Ternat","gem.","Vlaams-Brabant","De Watergroep (VMW) + Farys (TMVW)","AquaRio","Ternat"]
["Tervuren","gem.","Vlaams-Brabant","De Watergroep (VMW)","Gemeente","Tervuren"]
["Tessenderlo","gem.","Limburg","De Watergroep (VMW)","Gemeente","TES"]
["Tielt","stad","West-Vlaanderen","De Watergroep (VMW)","Riopact-vennoot","TLT"]
["Tielt-Winge","gem.","Vlaams-Brabant","De Watergroep (VMW)","Riobra","TW"]
["Tienen","stad","Vlaams-Brabant","De Watergroep (VMW)","Riobra","TI"]
["Tongeren","stad","Limburg","De Watergroep (VMW)","Inter-aqua","TO"]
["Torhout","stad","West-Vlaanderen","De Watergroep (VMW)","Infrax West","TH"]
["Tremelo","gem.","Vlaams-Brabant","De Watergroep (VMW)","Gemeente","Tremelo"]
["Turnhout","stad","Antwerpen","Pidpa","Gemeente","Turnhout"]
["Veurne","stad","West-Vlaanderen","IWVA","IWVA","Veurne"]
["Vilvoorde","stad","Vlaams-Brabant","De Watergroep (VMW)","Gemeente","Vilvoorde"]
["Vleteren","gem.","West-Vlaanderen","De Watergroep (VMW)","Riopact-vennoot","VLE"]
["Voeren","gem.","Limburg","De Watergroep (VMW)","Inter-aqua","VR"]
["Vorselaar","gem.","Antwerpen","Pidpa","HidroRio","VR"]
["Vosselaar","gem.","Antwerpen","Pidpa","Infrax West","VS"]
["Waasmunster","gem.","Oost-Vlaanderen","De Watergroep (VMW)","Riopact-vennoot","WMS"]
["Wachtebeke","gem.","Oost-Vlaanderen","De Watergroep (VMW)","Riopact-vennoot","WCB"]
["Waregem","stad","West-Vlaanderen","De Watergroep (VMW)","Gemeente","WAR"]
["Wellen","gem.","Limburg","De Watergroep (VMW)","Gemeente","WEL"]
["Wemmel","gem.","Vlaams-Brabant","Farys (TMVW)","AquaRio","Wemmel"]
["Wervik","stad","West-Vlaanderen","De Watergroep (VMW)","Gemeente","WER"]
["Westerlo","gem.","Antwerpen","Pidpa","Gemeente","WO"]
["Wetteren","gem.","Oost-Vlaanderen","Farys (TMVW)","Gemeente","Wetteren"]
["Wevelgem","gem.","West-Vlaanderen","De Watergroep (VMW)","Gemeente","Wevelgem"]
["Wezembeek-Oppem","gem.","Vlaams-Brabant","De Watergroep (VMW)","Riopact-vennoot","WZO"]
["Wichelen","gem.","Oost-Vlaanderen","Farys (TMVW)","AquaRio","Wichelen"]
["Wielsbeke","gem.","West-Vlaanderen","De Watergroep (VMW)","Gemeente","WIE"]
["Wijnegem","gem.","Antwerpen","Pidpa","HidroRio","WY"]
["Willebroek","gem.","Antwerpen","Pidpa","HidroRio","WL"]
["Wingene","gem.","West-Vlaanderen","De Watergroep (VMW)","Gemeente","WIN"]
["Wommelgem","gem.","Antwerpen","Pidpa","Gemeente","Wommelgem"]
["Wortegem-Petegem","gem.","Oost-Vlaanderen","Farys (TMVW)","AquaRio","Wortegem-Petegem"]
["Wuustwezel","gem.","Antwerpen","Pidpa","HidroRio","WU"]
["Zandhoven","gem.","Antwerpen","Pidpa","HidroRio","ZH"]
["Zaventem","gem.","Vlaams-Brabant","Farys (TMVW)","AquaRio","Zaventem"]
["Zedelgem","gem.","West-Vlaanderen","De Watergroep (VMW)","Riopact-vennoot","ZED"]
["Zele","gem.","Oost-Vlaanderen","De Watergroep (VMW)","Gemeente","ZEL"]
["Zelzate","gem.","Oost-Vlaanderen","Farys (TMVW)","AquaRio","Zelzate"]
["Zemst","gem.","Vlaams-Brabant","De Watergroep (VMW)","Gemeente","ZEM"]
["Zoersel","gem.","Antwerpen","Pidpa","HidroRio","ZS"]
["Zonhoven","gem.","Limburg","De Watergroep (VMW)","Inter-aqua","ZO"]
["Zonnebeke","gem.","West-Vlaanderen","De Watergroep (VMW)","Gemeente","ZON"]
["Zottegem","stad","Oost-Vlaanderen","Farys (TMVW)","AquaRio","Zottegem"]
["Zoutleeuw","stad","Vlaams-Brabant","De Watergroep (VMW)","Riobra","ZL"]
["Zuienkerke","gem.","West-Vlaanderen","Farys (TMVW)","AquaRio","Zuienkerke"]
["Zulte","gem.","Oost-Vlaanderen","Farys (TMVW)","AquaRio","Zulte"]
["Zutendaal","gem.","Limburg","De Watergroep (VMW)","Inter-aqua","ZU"]
["Zwalm","gem.","Oost-Vlaanderen","Farys (TMVW)","AquaRio","Zwalm"]
["Zwevegem","gem.","West-Vlaanderen","De Watergroep (VMW)","Gemeente","ZWE"]
["Zwijndrecht","gem","Antwerpen","Water-link (AWW)","Gemeente","Zwijndrecht"]